{"text_format":"1","workbook":"xlsx","n_sheets":9,"sheets":["Cover Sheet","QNST01","QNST02","QNST03","QNST04","QNST05_A","QNST05_B","CBM","List"],"not_rendered":{"charts":0,"images":34,"macros":1,"external_links":1,"defined_names":4,"comments":1,"pivot_tables":0},"unopened":[],"bounds":{"document_bytes":16777216,"sheet_cells":100000,"rows_first":2000,"rows_last":500,"rows_between":2000,"halvings":0,"cell_chars":16384,"cell_head_chars":4096},"cells_cut":0,"cells_raw":0,"read":"row_number_cap","date_system":"1900"}

{"sheet":"Cover Sheet","index":0,"n_rows":41,"n_cols":4,"rows_kept":41,"cut":false,"hidden":false,"merged":[[4,1,4,2],[5,0,5,4],[6,0,6,4],[9,1,10,2]]}
[]
[]
[]
[]
[]
["MFSA"]
["MALTA FINANCIAL SERVICES AUTHORITY"]
[]
[]
[null,"Quarterly National Specific Templates"]
[]
[]
[]
["1(a)","Name of Licence Holder"]
[]
["1(b)","Code"]
[]
[2,"Type of business carried out",null,""]
[]
[]
[3,"For the period from:"]
[null,"to:"]
[]
[4,"Currency in which accounts are reported","EUR"]
[null,"Exchange Rate to Euro at period end ",null,{"$f":"IF(C25=\"\",0,1)","v":0}]
[]
[]
[null,"Version 06/2023"]
[]
[]
[]
[]
[]
[]
[null,null,"Long Term Business"]
[null,null,"General Business"]
[null,null,"Pure Reinsurance Business"]
[null,"EUR","Composite"]
[null,"GBP"]
[null,"USD"]
[null,"SEK"]

{"sheet":"QNST01","index":1,"n_rows":35,"n_cols":6,"rows_kept":35,"cut":false,"hidden":false,"merged":[[12,1,12,3],[0,2,0,4],[1,2,1,4],[3,2,3,4],[4,2,4,4],[6,0,6,4],[13,0,13,4],[14,1,14,3],[18,1,18,3],[29,1,29,3],[19,1,19,3],[15,1,15,3],[16,1,16,3],[17,1,17,3],[21,1,21,3],[30,0,30,4],[31,1,31,3],[32,0,32,4],[34,1,34,4],[22,0,22,4],[23,1,23,3],[24,1,24,3],[28,1,28,3]]}
["Name of licenceholder:",null,{"$f":"'Cover Sheet'!C14","v":0}]
["Type of business carried out:",null,"General Business"]
["Period from:",null,{"$f":"'Cover Sheet'!C21","v":"00:00:00"},"to",{"$f":"'Cover Sheet'!C22","v":"00:00:00"}]
["Document type:",null,"MFSA National Specific Templates"]
["Sheet Code:",null,"QNST01"]
[]
["Technical Account - General Business"]
[]
[null,null,null,null,"Amount"]
[null,"Currency",null,null,"EUR"]
[1.1000000000000001,"Contracts measured under the Premium Allocation Approach",null,null,0]
[1.1100000000000001,"Contracts not measured under the Premium Allocation Approach",null,null,0]
[1,"Insurance revenue",null,null,{"$f":"SUM(E11:E12)","v":0},"calc."]
[]
[2.1,"Incurred claims and insurance services expenses",null,null,0]
[2.11,"Amortisation of insurance acquisition cash flows",null,null,0]
[2.12,"Losses and reversals of losses on onerous contracts",null,null,0]
[2.13,"Adjustments to liabilities for incurred claims",null,null,0]
[2.14,"(Impairment losses) and reversals of Insurance Acquisition Cash flows assets",null,null,0]
[2,"Insurance service expenses",null,null,{"$f":"SUM(E15:E19)","v":0},"calc."]
[]
[3,"Insurance service result before reinsurance contracts held",null,null,{"$f":"E13-E20","v":0},"calc."]
[]
[4.0999999999999996,"Allocation of reinsurance premiums paid",null,null,0]
[4.1100000000000003,"Amounts recoverable from reinsurers",null,null,0]
[4.12,"        Recoveries of incurred claims and other insurance service expenses",null,null,0]
[4.13,"        Recoveries and reversals of recoveries of losses on onerous underlying contracts",null,null,0]
[4.1399999999999997,"        Adjustments to assets for incurred claims"]
[4.1500000000000004,"Effect of changes in non-performance risk of reinsurers",null,null,0]
[4,"Net expenses from reinsurance contracts",null,null,{"$f":"SUM(E24:E29)","v":0},"calc."]
[]
[5,"Insurance Service Result - General Business",null,null,{"$f":"E22-E30","v":0},"calc."]
[]
[null,"Notes"]
["i","Please key in a value for each cell in the table where there is a validation. Where the cell contains no value, a value of zero is to be keyed in."]

{"sheet":"QNST02","index":2,"n_rows":35,"n_cols":6,"rows_kept":35,"cut":false,"hidden":false,"merged":[[31,1,31,3],[12,1,12,3],[0,2,0,4],[1,2,1,4],[3,2,3,4],[4,2,4,4],[6,0,6,4],[32,0,32,4],[34,1,34,4],[13,0,13,4],[14,1,14,3],[15,1,15,3],[16,1,16,3],[17,1,17,3],[18,1,18,3],[24,1,24,3],[19,1,19,3],[21,1,21,3],[22,0,22,4],[23,1,23,3],[28,1,28,3],[29,1,29,3],[30,0,30,4]]}
["Name of licenceholder:",null,{"$f":"'Cover Sheet'!C14","v":0}]
["Type of business carried out:",null,"Life Business"]
["Period from:",null,{"$f":"'Cover Sheet'!C21","v":"00:00:00"},"to",{"$f":"'Cover Sheet'!C22","v":"00:00:00"}]
["Document type:",null,"MFSA National Specific Templates"]
["Sheet Code:",null,"QNST02"]
[]
["Technical Account - Life Business"]
[]
[null,null,null,null,"Amount"]
[null,"Currency",null,null,"EUR"]
[1.1000000000000001,"Contracts measured under the Premium Allocation Approach",null,null,0]
[1.1100000000000001,"Contracts not measured under the Premium Allocation Approach",null,null,0]
[1,"Insurance revenue",null,null,{"$f":"SUM(E11:E12)","v":0},"calc."]
[]
[2.1,"Incurred claims and insurance services expenses",null,null,0]
[2.11,"Amortisation of insurance acquisition cash flows",null,null,0]
[2.12,"Losses and reversals of losses on onerous contracts",null,null,0]
[2.13,"Adjustments to liabilities for incurred claims",null,null,0]
[2.14,"(Impairment losses) and reversals of Insurance Acquisition Cash flows assets",null,null,0]
[2,"Insurance service expenses",null,null,{"$f":"SUM(E15:E19)","v":0},"calc."]
[]
[3,"Insurance service result before reinsurance contracts held",null,null,{"$f":"E13-E20","v":0},"calc."]
[]
[4.0999999999999996,"Allocation of reinsurance premiums paid",null,null,0]
[4.1100000000000003,"Amounts recoverable from reinsurers",null,null,0]
[4.12,"        Recoveries of incurred claims and other insurance service expenses",null,null,0]
[4.13,"        Recoveries and reversals of recoveries of losses on onerous underlying contracts",null,null,0]
[4.1399999999999997,"        Adjustments to assets for incurred claims",null,null,0]
[4.1500000000000004,"Effect of changes in non-performance risk of reinsurers",null,null,0]
[4,"Net expenses from reinsurance contracts",null,null,{"$f":"SUM(E24:E29)","v":0},"calc."]
[]
[5,"Insurance Service Result - Life Business",null,null,{"$f":"E22-E30","v":0},"calc."]
[]
[null,"Notes"]
["i","Please key in a value for each cell in the table where there is a validation. Where the cell contains no value, a value of zero is to be keyed in."]

{"sheet":"QNST03","index":3,"n_rows":43,"n_cols":6,"rows_kept":43,"cut":false,"hidden":false,"merged":[[14,1,14,3],[0,2,0,4],[1,2,1,4],[3,2,3,4],[4,2,4,4],[6,0,6,4],[9,1,9,3],[10,1,10,3],[11,1,11,3],[12,1,12,3],[13,1,13,3],[36,1,36,3],[37,1,37,3],[39,1,39,3],[42,1,42,4],[15,1,15,3],[16,1,16,3],[18,1,18,3],[38,1,38,3],[19,1,19,3],[17,1,17,3],[20,1,20,3],[21,1,21,3],[22,1,22,3],[24,1,24,3],[23,1,23,3],[25,1,25,3],[26,1,26,3],[27,1,27,3],[28,1,28,3],[29,1,29,3],[35,1,35,3],[30,1,30,3],[31,1,31,3],[32,1,32,3],[33,1,33,3],[34,1,34,3]]}
["Name of licenceholder:",null,{"$f":"'Cover Sheet'!C14","v":0}]
["Type of business carried out:",null,{"$f":"'Cover Sheet'!C18","v":0}]
["Period from:",null,{"$f":"'Cover Sheet'!C21","v":"00:00:00"},"to",{"$f":"'Cover Sheet'!C22","v":"00:00:00"}]
["Document type:",null,"MFSA National Specific Templates"]
["Sheet Code:",null,"QNST03"]
[]
["Non-Technical Account"]
[]
[null,null,null,null,"Amount"]
[null,"Currency",null,null,"EUR"]
[1.1000000000000001,"Insurance Service Result - General Business",null,null,{"$f":"QNST01!E32","v":0}]
[1.1100000000000001,"Insurance Service Result - Life Business",null,null,{"$f":"QNST02!E32","v":0}]
[]
[1,"Insurance Service Result - Total",null,null,{"$f":"SUM(E11:E12)","v":0},"calc."]
[]
[2.1,"Interest revenue calculated using the effective interest method",null,null,0]
[2.11,"Other investment revenue",null,null,0]
[2.12,"Net impairment gain/(loss) on financial assets",null,null,0]
[2,"Investment return",null,null,{"$f":"SUM(E16:E18)","v":0},"calc."]
[]
[3.1,"Net finance expenses from insurance contracts",null,null,0]
[3.11,"Net finance income from reinsurance contracts",null,null,0]
[3.12,"Movement in investment contract liabilities",null,null,0]
[3.13,"Movement in third party interests in consolidated funds",null,null,0]
[3,"Other financial expenses",null,null,{"$f":"SUM(E21:E24)","v":0},"calc."]
[]
[4,"Net financial result",null,null,{"$f":"E19-E25","v":0},"calc."]
[]
[5.0999999999999996,"Revenue from investment management services",null,null,0]
[5.1100000000000003,"Other income",null,null,0]
[5.12,"Other operating expenses",null,null,0]
[5.13,"Other finance costs",null,null,0]
[5.14,"Share of profit for equity-accounted investees, net of tax",null,null,0]
[5,"Other income/expenses",null,null,{"$f":"SUM(E29:E33)","v":0},"calc."]
[]
[6,"Profit before tax",null,null,{"$f":"E14+E27+E34","v":0},"calc."]
[]
[7,"Income tax expense",null,null,0]
[]
[8,"Profit after tax",null,null,{"$f":"E36+E38","v":0},"calc."]
[]
[null,"Notes"]
["i","Please key in a value for each cell in the table. Where the cell contains no value, a value of zero is to be keyed in."]

{"sheet":"QNST04","index":4,"n_rows":140,"n_cols":5,"rows_kept":140,"cut":false,"hidden":false,"merged":[[9,1,9,2],[10,1,10,2],[12,1,12,2],[13,1,13,2],[14,1,14,2],[15,1,15,2],[0,2,0,4],[1,2,1,4],[3,2,3,4],[4,2,4,4],[7,1,7,2],[8,1,8,2],[11,1,11,2],[22,1,22,2],[23,1,23,2],[24,1,24,2],[25,1,25,2],[26,1,26,2],[27,1,27,2],[16,1,16,2],[17,1,17,2],[18,1,18,2],[19,1,19,2],[20,1,20,2],[21,1,21,2],[28,1,28,2],[29,1,29,2],[30,1,30,2],[31,1,31,2],[32,1,32,2],[33,1,33,2],[43,1,43,2],[44,1,44,2],[47,1,47,2],[34,1,34,2],[41,1,41,2],[40,1,40,2],[42,1,42,2],[35,1,35,2],[36,1,36,2],[37,1,37,2],[38,1,38,2],[39,1,39,2],[45,1,45,2],[46,1,46,2],[123,1,123,2],[114,1,114,2],[115,1,115,2],[116,1,116,2],[117,1,117,2],[139,1,139,4],[131,1,131,2],[132,1,132,2],[133,1,133,2],[134,1,134,2],[135,1,135,2],[138,1,138,4],[124,0,124,4],[125,1,125,2],[127,1,127,2],[128,1,128,2],[129,1,129,2],[130,1,130,2],[118,1,118,2],[119,1,119,2],[120,1,120,2],[121,1,121,2],[122,1,122,2],[51,1,51,2],[52,1,52,2],[74,1,74,2],[77,1,77,2],[81,1,81,2],[92,1,92,2],[93,1,93,2],[94,1,94,2],[95,1,95,2],[58,1,58,2],[59,1,59,2],[60,1,60,2],[61,1,61,2],[62,1,62,2],[56,1,56,2],[57,1,57,2],[80,1,80,2],[87,1,87,2],[88,1,88,2],[70,1,70,2],[73,1,73,2],[90,1,90,2],[91,1,91,2],[89,1,89,2],[63,1,63,2],[65,1,65,2],[66,1,66,2],[67,1,67,2],[110,1,110,2],[111,1,111,2],[112,1,112,2],[113,1,113,2],[108,1,108,2],[105,1,105,2],[106,1,106,2],[107,1,107,2],[98,1,98,2],[99,1,99,2],[100,1,100,2],[101,1,101,2],[102,1,102,2],[96,1,96,2],[97,1,97,2],[103,1,103,2],[104,1,104,2]]}
["Name of licenceholder:",null,{"$f":"'Cover Sheet'!C14","v":0}]
["Type of business carried out:",null,{"$f":"'Cover Sheet'!C18","v":0}]
["Period from:",null,{"$f":"'Cover Sheet'!C21","v":"00:00:00"},"to",{"$f":"'Cover Sheet'!C22","v":"00:00:00"}]
["Document type:",null,"MFSA National Specific Templates"]
["Sheet Code:",null,"QNST04"]
[]
[null,null,null,"Solvency II Value","Management Accounts - Balance Sheet Value"]
[null,"Currency",null,"EUR","EUR"]
[null,"Assets"]
[1,"Goodwill"]
[2,"Intangible assets"]
[3,"   Right-of-use assets"]
[4,"Deferred tax assets"]
[5,"Employee benefit surplus"]
[6,"Property, plant & equipment held for own use"]
[7,"Investments (other than assets held for index-linked and unit-linked contracts) ",null,{"$f":"D17+D18+D19+D22+D27+D28+D29+D30","v":0},{"$f":"E17+E18+E19+E22+E27+E28+E29+E30","v":0}]
[8,"Property (other than for own use)"]
[9,"Holdings in related undertakings, including participations"]
[10,"Equities",null,{"$f":"SUM(D20:D21)","v":0},{"$f":"SUM(E20:E21)","v":0}]
[11,"Equities - listed"]
[12,"Equities - unlisted"]
[13,"Bonds",null,{"$f":"SUM(D23:D26)","v":0},{"$f":"SUM(E23:E26)","v":0}]
[14,"Government Bonds"]
[15,"Corporate Bonds"]
[16,"Structured notes"]
[17,"Collateralised securities"]
[18,"Collective Investments Undertakings"]
[19,"Derivatives"]
[20,"Deposits other than cash equivalents"]
[21,"Other investments"]
[22,"Assets held for index-linked and unit-linked contracts"]
[23,"Loans and mortgages",null,{"$f":"SUM(D33:D35)","v":0},{"$f":"SUM(E33:E35)","v":0}]
[24,"Loans on policies"]
[25,"Loans and mortgages to individuals"]
[26,"Other loans and mortgages"]
[27,"Reinsurance recoverables ",null,{"$f":"D37+D40","v":0},{"$f":"E37+E40","v":0}]
[28,"Non-life and health similar to non-life",null,{"$f":"SUM(D38:D39)","v":0},{"$f":"SUM(E38:E39)","v":0}]
[29,"Non-life excluding health"]
[30,"Health similar to non-life"]
[31,"Life and health similar to life, excluding health and index-linked and unit-linked",null,{"$f":"SUM(D41:D42)","v":0},{"$f":"SUM(E41:E42)","v":0}]
[32,"Health similar to life"]
[33,"Life excluding health and index-linked and unit-linked"]
[34,"Life index-linked and unit-linked"]
[35,"  Insurance Contract Assets",null,null,{"$f":"E45+E46","v":0}]
[36,"    Assets for insurance acquisition cash flows"]
[37,"    Insurance contract balances"]
[38,"  Reinsurance Contract Assets (Premium Allocation Approach)",null,null,{"$f":"E48+E51","v":0}]
[39,"       Assets for remaining coverage",null,null,{"$f":"SUM(E49:E50)","v":0}]
[40,"        Excluding loss recovery component"]
[41,"        Loss recovery component"]
[42,"    Asset for incurred claims"]
[43,"  Reinsurance Contract Assets (General Measurement Model)",null,null,{"$f":"E53+E56","v":0}]
[44,"       Assets for remaining coverage",null,null,{"$f":"E54+E55","v":0}]
[45,"        Excluding loss recovery component"]
[46,"        Loss recovery component"]
[47,"    Asset for incurred claims"]
[48,"Deposits to cedants"]
[49,"Receivables due from intermediaries acting on behalf of the insurer"]
[50,"Receivables (trade, not insurance)"]
[51,"Own shares (held directly)"]
[52,"Amounts due in respect of own fund items or initial fund called up but not yet paid in"]
[53,"Cash and cash equivalents"]
[54,"Any other assets, not elsewhere shown"]
[55,"Total assets",null,{"$f":"D11+D12+D13+D14+D15+D16+D31+D32+D36+D57+D58+D59+D60+D61+D62+D63","v":0},{"$f":"E10+E11+E12+E13+E14+E15+E16+E31+E32+E36+E44+E47+E52+E57+E58+E59+E60+E61+E62+E63","v":0}]
[]
[null,"Liabilities"]
[56,"Insurance contract liabilities (Premium Allocation Approach)",null,null,{"$f":"E68+E71","v":0}]
[57,"Liability for remaining coverage",null,null,{"$f":"SUM(E69:E70)","v":0}]
[58,"   Excluding Loss component"]
[59,"   Loss component"]
[60,"Liability for incurred claims",null,null,{"$f":"SUM(E72:E73)","v":0}]
[61,"  Estimates of the present value of future cash flows"]
[62,"  Risk adjustment"]
[63,"Insurance contract liabilities (General Measurement Model/Variable Fee Approach)",null,null,{"$f":"E75+E78","v":0}]
[64,"Liability for remaining coverage",null,null,{"$f":"SUM(E76:E77)","v":0}]
[65,"   Excluding Loss component"]
[66,"   Loss component"]
[67,"Liability for incurred claims",null,null,{"$f":"SUM(E79:E80)","v":0}]
[68,"  Estimates of the present value of future cash flows"]
[69,"  Risk adjustment"]
[70,"Reinsurance Contract Liabilities",null,null,{"$f":"E82+E85","v":0}]
[71,"     Assets for remaining coverage",null,null,{"$f":"SUM(E83:E84)","v":0}]
[72,"    Excluding loss recovery component"]
[73,"    Loss recovery component"]
[74,"  Asset for incurred claims",null,null,{"$f":"SUM(E86:E87)","v":0}]
[75,"     Estimates of the present value of future cash flows"]
[76,"     Risk adjustment"]
[77,"Technical provisions – non-life (SII Basis)",null,{"$f":"D89+D93","v":0}]
[78,"Technical provisions – non-life (excluding health)",null,{"$f":"SUM(D90:D92)","v":0}]
[79,"TP calculated as a whole"]
[80,"Best Estimate"]
[81,"Risk margin"]
[82,"Technical provisions - health (similar to non-life)",null,{"$f":"SUM(D94:D96)","v":0}]
[83,"TP calculated as a whole"]
[84,"Best Estimate"]
[85,"Risk margin"]
[86,"Technical provisions - life (excluding index-linked and unit-linked)",null,{"$f":"D98+D102","v":0}]
[87,"Technical provisions - health (similar to life)",null,{"$f":"SUM(D99:D101)","v":0}]
[88,"TP calculated as a whole"]
[89,"Best Estimate"]
[90,"Risk margin"]
[91,"Technical provisions – life (excluding health and index-linked and unit-linked)",null,{"$f":"SUM(D103:D105)","v":0}]
[92,"TP calculated as a whole"]
[93,"Best Estimate"]
[94,"Risk margin"]
[95,"Technical provisions – index-linked and unit-linked",null,{"$f":"SUM(D107:D109)","v":0}]
[96,"TP calculated as a whole"]
[97,"Best Estimate"]
[98,"Risk margin"]
[99,"Lease liabilities"]
[100,"Contingent liabilities"]
[101,"Provisions other than technical provisions"]
[102,"Employee benefit obligation"]
[103,"Deposits from reinsurers"]
[104,"Deferred tax liabilities"]
[105,"Derivatives"]
[106,"Debts owed to credit institutions"]
[107,"Financial liabilities other than debts owed to credit institutions"]
[108,"Payables (trade, not insurance)"]
[109,"Subordinated liabilities",null,{"$f":"SUM(D121:D122)","v":0},{"$f":"SUM(E121:E122)","v":0}]
[110,"Subordinated liabilities not in basic own funds"]
[111,"Subordinated liabilities in basic own funds"]
[112,"Any other liabilities, not elsewhere shown"]
[113,"Total liabilities",null,{"$f":"D88+D97+D106+D111+D112+D113+D114+D115+D116+D117+D118+D119+D120+D123","v":0},{"$f":"E67+E74+E81+E110+E112+E113+E114+E115+E116+E117+E118+E119+E123","v":0}]
[]
[114,"Excess of assets over liabilities",null,{"$f":"D64-D124","v":0}]
[]
[null,"Equity and Reserves"]
[115,"Share capital"]
[116,"Share premium"]
[117,"Capital Contribution"]
[118,"Other reserves"]
[119,"Retained earnings"]
[120,"Profit for the year"]
[121,"Dividend paid"]
[122,"Total Equity and Reserves",null,null,{"$f":"SUM(E129:E135)","v":0}]
[]
[null,"Notes"]
["i","Please key in a value for each cell in the table where there is a validation. Where the cell contains no value, a value of zero is to be keyed in."]
["ii","The deduction of Total Assets less Total Liabilities should be equal to the Total Equity and Reserves for the values in the Management Accounts - Balance Sheet Value column."]

{"sheet":"QNST05_A","index":5,"n_rows":54,"n_cols":9,"rows_kept":54,"cut":false,"hidden":false,"merged":[[9,1,11,1],[9,2,11,2],[9,3,11,3],[9,4,11,4],[9,5,11,5],[9,6,11,6],[9,7,11,7],[9,8,11,8],[1,2,1,4],[2,2,2,4],[4,2,4,4],[5,2,5,4]]}
[]
[null,"Name of licenceholder:",{"$f":"'Cover Sheet'!C14","v":0}]
[null,"Type of business carried out:",{"$f":"'Cover Sheet'!C18","v":0}]
[null,"Period from:",{"$f":"'Cover Sheet'!C21","v":"00:00:00"},"to",{"$f":"'Cover Sheet'!C22","v":"00:00:00"}]
[null,"Document type:","MFSA National Specific Templates"]
[null,"Sheet Code:","QNST05_A"]
[]
[null,"Activity by Country - General Business - This sheet is to be completed by all insurance undertakings carrying out insurance/reinsurance business activities inside and outside Malta."]
[]
[null,"Jurisdiction","Line of business","FOS / FOE / Non-EEA / Not applicable *","Gross Premiums Written **","Gross Claims Incurred ***","Gross Commissions ****","Number of contracts *****"]
[]
[]
[]
[]
[]
[]
[]
[]
[]
[]
[]
[]
[]
[]
[]
[null,null,null,null,null,null,null,null," "]
[]
[]
[]
[]
[]
[]
[]
[]
[]
[]
[]
[]
[]
[]
[]
[]
[]
[]
[]
[null,"Total",null,null,{"$f":"SUM(E13:E45)","v":0},{"$f":"SUM(F13:F45)","v":0},{"$f":"SUM(G13:G45)","v":0},{"$f":"SUM(H13:H45)","v":0}]
[]
[null,"* Not applicable is to be selected for reinsurance business and insurance/reinsurance business carried out in Malta. "]
[null,"** Gross Premiums Written shall comprise all amounts due during the financial year in respect of insurance contracts, regardless of the fact that such amounts may relate in whole or in part to a later financial year. "]
[null,"*** Gross Claims Incurred means the sum of the claims paid and the change in the provision for claims during the financial year related to insurance contracts. This shall exclude claims management expenses. "]
[null,"**** Gross Commissions are commission costs, costs of selling, underwriting and initiating an insurance contract that has been issued."]
[null,"***** For insurance undertakings carrying out insurance business this should be the number of policies issues. This is not applicable for insurance undertakings carrying out reinsurance business."]
[]
[null,"N.B - You may add more activities by inserting new rows."]

{"sheet":"QNST05_B","index":6,"n_rows":51,"n_cols":8,"rows_kept":51,"cut":false,"hidden":false,"merged":[[9,5,11,5],[9,6,11,6],[9,7,11,7],[47,1,47,6],[1,2,1,4],[2,2,2,4],[4,2,4,4],[5,2,5,4],[9,1,11,1],[9,2,11,2],[9,3,11,3],[9,4,11,4]]}
[]
[null,"Name of licenceholder:",{"$f":"'Cover Sheet'!C14","v":0}]
[null,"Type of business carried out:",{"$f":"'Cover Sheet'!C18","v":0}]
[null,"Period from:",{"$f":"'Cover Sheet'!C21","v":"00:00:00"},"to",{"$f":"'Cover Sheet'!C22","v":"00:00:00"}]
[null,"Document type:","MFSA National Specific Templates"]
[null,"Sheet Code:","QNST05_B"]
[]
[null,"Activity by Country - Life Business - This sheet is to be completed by all insurance undertakings carrying out insurance/reinsurance business activities inside and outside Malta."]
[]
[null,"Jurisdiction","Line of business","FOS / FOE / Non-EEA / Not applicable *","Gross Premiums Written **","Number of contracts ","Gross Commissions ***"]
[]
[]
[]
[]
[]
[]
[]
[]
[]
[]
[]
[]
[]
[]
[null,null,null,null,null,null,null," "]
[]
[]
[]
[]
[]
[]
[]
[]
[]
[]
[]
[]
[]
[]
[]
[]
[]
[]
[]
[null,"Total",null,null,{"$f":"SUM(E13:E44)","v":0},{"$f":"SUM(F13:F44)","v":0},{"$f":"SUM(G13:G44)","v":0}]
[]
[null,"* Not applicable is to be selected for reinsurance business and insurance/reinsurance business carried out in Malta. "]
[null,"** Gross Premiums Written shall comprise all amounts due during the financial year in respect of insurance contracts, regardless of the fact that such amounts may relate in whole or in part to a later financial year. "]
[null,"*** Gross Commissions are commission costs, costs of selling, underwriting and initiating an insurance contract that has been issued."]
[]
[null,"N.B - You may add more activities by inserting new rows."]

{"sheet":"CBM","index":7,"n_rows":889,"n_cols":11,"rows_kept":889,"cut":false,"hidden":false,"merged":[[264,1,264,2],[38,1,38,2],[8,1,8,4],[8,9,8,10]],"read":"row_number_cap"}
["A"]
[1,null,null,null,null,null,null,"CONFIDENTIAL"]
[0]
[2]
[1,"Period from:",{"$f":"IF('Cover Sheet'!C21=\"\",\"\",'Cover Sheet'!C21)","v":""}]
[1,"Period to:",{"$f":"IF('Cover Sheet'!C22=\"\",\"\",'Cover Sheet'!C22)","v":""}]
[1]
[1]
[1,"PART A:  SELECTED INCOME AND EXPENSE ITEMS (cumulative for the undertaking's financial year)",null,null,null,null,"Amount"]
[1,null,"Income"]
[1,1.1000000000000001,"interest receivable"]
[1,1.2,"dividends receivable"]
[1,1.3,"rental income"]
[1,1.4,"exchange differences"]
[1,1.5,"income from financial investments at fair value through PL"]
[1,1.6,"gains/losses from revaluation of financial assets (net fair value gains/losses)"]
[1,1.7,"gains/losses from revaluation of investment property (net fair value gains/losses)"]
[1,1.8,"other technical income"]
[1,1.9,"interest expense"]
[1,1.1000000000000001,"share of losses from related parties"]
[1,1.1100000000000001,"investment expenses"]
[1,null,"Expenses"]
[1,2.1,"wages and salaries (including directors' fees and remuneration)"]
[1,2.2000000000000002,"social security contributions"]
[1,2.2999999999999998,"depreciation"]
[1,2.4,"amortisation"]
[1]
[1,3,"Bonuses and rebates"]
[1,4,"Movement in value of in-force business"]
[1]
[1]
[1,"PART B:  ADDITIONAL INFORMATION"]
[1,5,"Number of employees",null,null,null,{"$f":"SUM(G34:G35)","v":0}]
[1,5.0999999999999996,"   full time"]
[1,5.2,"   part time"]
[1]
[1]
[1,"PART C:  SELECTED TRANSACTIONS WITH NON-RESIDENTS OF MALTA"]
[1,"Insurance transactions (for the quarter)",null,"* Press +/- to add\n/delete countries","Country *","Country Code","Premiums","Claims"]
[1,6,"Primary insurance (with non-residents of Malta)",null,null,{"$f":"IF(E40=\"\",\"\",VLOOKUP(E40,$C$813:$E$853,2,FALSE))","v":""},{"$f":"SUM(G41:G84)","v":0},{"$f":"SUM(H41:H84)","v":0}]
[1,null,"Primary insurance (with non-residents of Malta)",null,null,"",null,null,null,{"$f":"IF(COUNTIF(E$41:E$84,E41)>1,\"Duplicate country\",\"-\")","v":"-"},{"$f":"IF(AND(E41<>\"\",AND(G41=\"\",H41=\"\")),\"Input values\",\"-\")","v":"-"}]
[{"$f":"IF(OR(E42<>\"\",G42<>\"\",H42<>\"\"),1,0)","v":0},null,"Primary insurance (with non-residents of Malta)",null,null,"",null,null,null,{"$f":"IF(COUNTIF(E$41:E$84,E42)>1,\"Duplicate country\",\"-\")","v":"-"},{"$f":"IF(AND(E42<>\"\",AND(G42=\"\",H42=\"\")),\"Input values\",\"-\")","v":"-"}]
[0,null,"Primary insurance (with non-residents of Malta)",null,null,"",null,null,null,"-","-"]
[0,null,"Primary insurance (with non-residents of Malta)",null,null,"",null,null,null,"-","-"]
[0,null,"Primary insurance (with non-residents of Malta)",null,null,"",null,null,null,"-","-"]
[0,null,"Primary insurance (with non-residents of Malta)",null,null,"",null,null,null,"-","-"]
[0,null,"Primary insurance (with non-residents of Malta)",null,null,"",null,null,null,"-","-"]
[0,null,"Primary insurance (with non-residents of Malta)",null,null,"",null,null,null,"-","-"]
[0,null,"Primary insurance (with non-residents of Malta)",null,null,"",null,null,null,"-","-"]
[0,null,"Primary insurance (with non-residents of Malta)",null,null,"",null,null,null,"-","-"]
[0,null,"Primary insurance (with non-residents of Malta)",null,null,"",null,null,null,"-","-"]
[0,null,"Primary insurance (with non-residents of Malta)",null,null,"",null,null,null,"-","-"]
[0,null,"Primary insurance (with non-residents of Malta)",null,null,"",null,null,null,"-","-"]
[0,null,"Primary insurance (with non-residents of Malta)",null,null,"",null,null,null,"-","-"]
[0,null,"Primary insurance (with non-residents of Malta)",null,null,"",null,null,null,"-","-"]
[0,null,"Primary insurance (with non-residents of Malta)",null,null,"",null,null,null,"-","-"]
[0,null,"Primary insurance (with non-residents of Malta)",null,null,"",null,null,null,"-","-"]
[0,null,"Primary insurance (with non-residents of Malta)",null,null,"",null,null,null,"-","-"]
[0,null,"Primary insurance (with non-residents of Malta)",null,null,"",null,null,null,"-","-"]
[0,null,"Primary insurance (with non-residents of Malta)",null,null,"",null,null,null,"-","-"]
[0,null,"Primary insurance (with non-residents of Malta)",null,null,"",null,null,null,"-","-"]
[0,null,"Primary insurance (with non-residents of Malta)",null,null,"",null,null,null,"-","-"]
[0,null,"Primary insurance (with non-residents of Malta)",null,null,"",null,null,null,"-","-"]
[0,null,"Primary insurance (with non-residents of Malta)",null,null,"",null,null,null,"-","-"]
[0,null,"Primary insurance (with non-residents of Malta)",null,null,"",null,null,null,"-","-"]
[0,null,"Primary insurance (with non-residents of Malta)",null,null,"",null,null,null,"-","-"]
[0,null,"Primary insurance (with non-residents of Malta)",null,null,"",null,null,null,"-","-"]
[0,null,"Primary insurance (with non-residents of Malta)",null,null,"",null,null,null,"-","-"]
[0,null,"Primary insurance (with non-residents of Malta)",null,null,"",null,null,null,"-","-"]
[0,null,"Primary insurance (with non-residents of Malta)",null,null,"",null,null,null,"-","-"]
[0,null,"Primary insurance (with non-residents of Malta)",null,null,"",null,null,null,"-","-"]
[0,null,"Primary insurance (with non-residents of Malta)",null,null,"",null,null,null,"-","-"]
[0,null,"Primary insurance (with non-residents of Malta)",null,null,"",null,null,null,"-","-"]
[0,null,"Primary insurance (with non-residents of Malta)",null,null,"",null,null,null,"-","-"]
[0,null,"Primary insurance (with non-residents of Malta)",null,null,"",null,null,null,"-","-"]
[0,null,"Primary insurance (with non-residents of Malta)",null,null,"",null,null,null,"-","-"]
[0,null,"Primary insurance (with non-residents of Malta)",null,null,"",null,null,null,"-","-"]
[0,null,"Primary insurance (with non-residents of Malta)",null,null,"",null,null,null,"-","-"]
[0,null,"Primary insurance (with non-residents of Malta)",null,null,"",null,null,null,"-","-"]
[0,null,"Primary insurance (with non-residents of Malta)",null,null,"",null,null,null,"-","-"]
[0,null,"Primary insurance (with non-residents of Malta)",null,null,"",null,null,null,"-","-"]
[0,null,"Primary insurance (with non-residents of Malta)",null,null,"",null,null,null,"-","-"]
[0,null,"Primary insurance (with non-residents of Malta)",null,null,"",null,null,null,"-","-"]
[0,null,"Primary insurance (with non-residents of Malta)",null,null,"",null,null,null,"-","-"]
[1,7,"Life insurance and pension funds",null,null,"",{"$f":"SUM(G86:G129)","v":0},{"$f":"SUM(H86:H129)","v":0}]
[1,null,"Life insurance and pension funds",null,null,"",null,null,null,{"$f":"IF(COUNTIF(E$86:E$129,E86)>1,\"Duplicate country\",\"-\")","v":"-"},{"$f":"IF(AND(E86<>\"\",AND(G86=\"\",H86=\"\")),\"Input values\",\"-\")","v":"-"}]
[{"$f":"IF(OR(E87<>\"\",G87<>\"\",H87<>\"\"),1,0)","v":0},null,"Life insurance and pension funds",null,null,"",null,null,null,{"$f":"IF(COUNTIF(E$86:E$129,E87)>1,\"Duplicate country\",\"-\")","v":"-"},{"$f":"IF(AND(E87<>\"\",AND(G87=\"\",H87=\"\")),\"Input values\",\"-\")","v":"-"}]
[0,null,"Life insurance and pension funds",null,null,"",null,null,null,"-","-"]
[0,null,"Life insurance and pension funds",null,null,"",null,null,null,"-","-"]
[0,null,"Life insurance and pension funds",null,null,"",null,null,null,"-","-"]
[0,null,"Life insurance and pension funds",null,null,"",null,null,null,"-","-"]
[0,null,"Life insurance and pension funds",null,null,"",null,null,null,"-","-"]
[0,null,"Life insurance and pension funds",null,null,"",null,null,null,"-","-"]
[0,null,"Life insurance and pension funds",null,null,"",null,null,null,"-","-"]
[0,null,"Life insurance and pension funds",null,null,"",null,null,null,"-","-"]
[0,null,"Life insurance and pension funds",null,null,"",null,null,null,"-","-"]
[0,null,"Life insurance and pension funds",null,null,"",null,null,null,"-","-"]
[0,null,"Life insurance and pension funds",null,null,"",null,null,null,"-","-"]
[0,null,"Life insurance and pension funds",null,null,"",null,null,null,"-","-"]
[0,null,"Life insurance and pension funds",null,null,"",null,null,null,"-","-"]
[0,null,"Life insurance and pension funds",null,null,"",null,null,null,"-","-"]
[0,null,"Life insurance and pension funds",null,null,"",null,null,null,"-","-"]
[0,null,"Life insurance and pension funds",null,null,"",null,null,null,"-","-"]
[0,null,"Life insurance and pension funds",null,null,{"$f":"IF(E104=\"\",\"\",VLOOKUP(E104,$C$813:$E$853,2,FALSE))","v":""},null,null,null,"-","-"]
[0,null,"Life insurance and pension funds",null,null,"",null,null,null,"-","-"]
[0,null,"Life insurance and pension funds",null,null,"",null,null,null,"-","-"]
[0,null,"Life insurance and pension funds",null,null,"",null,null,null,"-","-"]
[0,null,"Life insurance and pension funds",null,null,"",null,null,null,"-","-"]
[0,null,"Life insurance and pension funds",null,null,"",null,null,null,"-","-"]
[0,null,"Life insurance and pension funds",null,null,"",null,null,null,"-","-"]
[0,null,"Life insurance and pension funds",null,null,"",null,null,null,"-","-"]
[0,null,"Life insurance and pension funds",null,null,"",null,null,null,"-","-"]
[0,null,"Life insurance and pension funds",null,null,"",null,null,null,"-","-"]
[0,null,"Life insurance and pension funds",null,null,"",null,null,null,"-","-"]
[0,null,"Life insurance and pension funds",null,null,"",null,null,null,"-","-"]
[0,null,"Life insurance and pension funds",null,null,"",null,null,null,"-","-"]
[0,null,"Life insurance and pension funds",null,null,"",null,null,null,"-","-"]
[0,null,"Life insurance and pension funds",null,null,"",null,null,null,"-","-"]
[0,null,"Life insurance and pension funds",null,null,"",null,null,null,"-","-"]
[0,null,"Life insurance and pension funds",null,null,"",null,null,null,"-","-"]
[0,null,"Life insurance and pension funds",null,null,"",null,null,null,"-","-"]
[0,null,"Life insurance and pension funds",null,null,"",null,null,null,"-","-"]
[0,null,"Life insurance and pension funds",null,null,"",null,null,null,"-","-"]
[0,null,"Life insurance and pension funds",null,null,"",null,null,null,"-","-"]
[0,null,"Life insurance and pension funds",null,null,"",null,null,null,"-","-"]
[0,null,"Life insurance and pension funds",null,null,"",null,null,null,"-","-"]
[0,null,"Life insurance and pension funds",null,null,"",null,null,null,"-","-"]
[0,null,"Life insurance and pension funds",null,null,"",null,null,null,"-","-"]
[0,null,"Life insurance and pension funds",null,null,"",null,null,null,"-","-"]
[1,8,"Freight insurance",null,null,"",{"$f":"SUM(G131:G174)","v":0},{"$f":"SUM(H131:H174)","v":0}]
[1,null,"Freight insurance",null,null,"",null,null,null,{"$f":"IF(COUNTIF(E$131:E$174,E131)>1,\"Duplicate country\",\"-\")","v":"-"},{"$f":"IF(AND(E131<>\"\",AND(G131=\"\",H131=\"\")),\"Input values\",\"-\")","v":"-"}]
[{"$f":"IF(OR(E132<>\"\",G132<>\"\",H132<>\"\"),1,0)","v":0},null,"Freight insurance",null,null,"",null,null,null,{"$f":"IF(COUNTIF(E$131:E$174,E132)>1,\"Duplicate country\",\"-\")","v":"-"},{"$f":"IF(AND(E132<>\"\",AND(G132=\"\",H132=\"\")),\"Input values\",\"-\")","v":"-"}]
[0,null,"Freight insurance",null,null,"",null,null,null,"-","-"]
[0,null,"Freight insurance",null,null,"",null,null,null,"-","-"]
[0,null,"Freight insurance",null,null,"",null,null,null,"-","-"]
[0,null,"Freight insurance",null,null,"",null,null,null,"-","-"]
[0,null,"Freight insurance",null,null,"",null,null,null,"-","-"]
[0,null,"Freight insurance",null,null,"",null,null,null,"-","-"]
[0,null,"Freight insurance",null,null,"",null,null,null,"-","-"]
[0,null,"Freight insurance",null,null,"",null,null,null,"-","-"]
[0,null,"Freight insurance",null,null,"",null,null,null,"-","-"]
[0,null,"Freight insurance",null,null,"",null,null,null,"-","-"]
[0,null,"Freight insurance",null,null,"",null,null,null,"-","-"]
[0,null,"Freight insurance",null,null,"",null,null,null,"-","-"]
[0,null,"Freight insurance",null,null,"",null,null,null,"-","-"]
[0,null,"Freight insurance",null,null,"",null,null,null,"-","-"]
[0,null,"Freight insurance",null,null,"",null,null,null,"-","-"]
[0,null,"Freight insurance",null,null,"",null,null,null,"-","-"]
[0,null,"Freight insurance",null,null,"",null,null,null,"-","-"]
[0,null,"Freight insurance",null,null,"",null,null,null,"-","-"]
[0,null,"Freight insurance",null,null,"",null,null,null,"-","-"]
[0,null,"Freight insurance",null,null,"",null,null,null,"-","-"]
[0,null,"Freight insurance",null,null,"",null,null,null,"-","-"]
[0,null,"Freight insurance",null,null,"",null,null,null,"-","-"]
[0,null,"Freight insurance",null,null,"",null,null,null,"-","-"]
[0,null,"Freight insurance",null,null,"",null,null,null,"-","-"]
[0,null,"Freight insurance",null,null,"",null,null,null,"-","-"]
[0,null,"Freight insurance",null,null,"",null,null,null,"-","-"]
[0,null,"Freight insurance",null,null,"",null,null,null,"-","-"]
[0,null,"Freight insurance",null,null,"",null,null,null,"-","-"]
[0,null,"Freight insurance",null,null,"",null,null,null,"-","-"]
[0,null,"Freight insurance",null,null,"",null,null,null,"-","-"]
[0,null,"Freight insurance",null,null,"",null,null,null,"-","-"]
[0,null,"Freight insurance",null,null,"",null,null,null,"-","-"]
[0,null,"Freight insurance",null,null,"",null,null,null,"-","-"]
[0,null,"Freight insurance",null,null,"",null,null,null,"-","-"]
[0,null,"Freight insurance",null,null,"",null,null,null,"-","-"]
[0,null,"Freight insurance",null,null,{"$f":"IF(E168=\"\",\"\",VLOOKUP(E168,$C$813:$E$853,2,FALSE))","v":""},null,null,null,"-","-"]
[0,null,"Freight insurance",null,null,"",null,null,null,"-","-"]
[0,null,"Freight insurance",null,null,"",null,null,null,"-","-"]
[0,null,"Freight insurance",null,null,"",null,null,null,"-","-"]
[0,null,"Freight insurance",null,null,"",null,null,null,"-","-"]
[0,null,"Freight insurance",null,null,"",null,null,null,"-","-"]
[0,null,"Freight insurance",null,null,"",null,null,null,"-","-"]
[1,9,"Re-insurance assumed (from non-residents)",null,null,"",{"$f":"SUM(G176:G219)","v":0},{"$f":"SUM(H176:H219)","v":0}]
[1,null,"Re-insurance assumed (from non-residents)",null,null,"",null,null,null,{"$f":"IF(COUNTIF(E$176:E$219,E176)>1,\"Duplicate country\",\"-\")","v":"-"},{"$f":"IF(AND(E176<>\"\",AND(G176=\"\",H176=\"\")),\"Input values\",\"-\")","v":"-"}]
[{"$f":"IF(OR(E177<>\"\",G177<>\"\",H177<>\"\"),1,0)","v":0},null,"Re-insurance assumed (from non-residents)",null,null,"",null,null,null,{"$f":"IF(COUNTIF(E$176:E$219,E177)>1,\"Duplicate country\",\"-\")","v":"-"},{"$f":"IF(AND(E177<>\"\",AND(G177=\"\",H177=\"\")),\"Input values\",\"-\")","v":"-"}]
[0,null,"Re-insurance assumed (from non-residents)",null,null,"",null,null,null,"-","-"]
[0,null,"Re-insurance assumed (from non-residents)",null,null,"",null,null,null,"-","-"]
[0,null,"Re-insurance assumed (from non-residents)",null,null,"",null,null,null,"-","-"]
[0,null,"Re-insurance assumed (from non-residents)",null,null,"",null,null,null,"-","-"]
[0,null,"Re-insurance assumed (from non-residents)",null,null,"",null,null,null,"-","-"]
[0,null,"Re-insurance assumed (from non-residents)",null,null,"",null,null,null,"-","-"]
[0,null,"Re-insurance assumed (from non-residents)",null,null,"",null,null,null,"-","-"]
[0,null,"Re-insurance assumed (from non-residents)",null,null,"",null,null,null,"-","-"]
[0,null,"Re-insurance assumed (from non-residents)",null,null,"",null,null,null,"-","-"]
[0,null,"Re-insurance assumed (from non-residents)",null,null,"",null,null,null,"-","-"]
[0,null,"Re-insurance assumed (from non-residents)",null,null,"",null,null,null,"-","-"]
[0,null,"Re-insurance assumed (from non-residents)",null,null,"",null,null,null,"-","-"]
[0,null,"Re-insurance assumed (from non-residents)",null,null,"",null,null,null,"-","-"]
[0,null,"Re-insurance assumed (from non-residents)",null,null,"",null,null,null,"-","-"]
[0,null,"Re-insurance assumed (from non-residents)",null,null,"",null,null,null,"-","-"]
[0,null,"Re-insurance assumed (from non-residents)",null,null,"",null,null,null,"-","-"]
[0,null,"Re-insurance assumed (from non-residents)",null,null,"",null,null,null,"-","-"]
[0,null,"Re-insurance assumed (from non-residents)",null,null,"",null,null,null,"-","-"]
[0,null,"Re-insurance assumed (from non-residents)",null,null,"",null,null,null,"-","-"]
[0,null,"Re-insurance assumed (from non-residents)",null,null,"",null,null,null,"-","-"]
[0,null,"Re-insurance assumed (from non-residents)",null,null,"",null,null,null,"-","-"]
[0,null,"Re-insurance assumed (from non-residents)",null,null,"",null,null,null,"-","-"]
[0,null,"Re-insurance assumed (from non-residents)",null,null,"",null,null,null,"-","-"]
[0,null,"Re-insurance assumed (from non-residents)",null,null,"",null,null,null,"-","-"]
[0,null,"Re-insurance assumed (from non-residents)",null,null,"",null,null,null,"-","-"]
[0,null,"Re-insurance assumed (from non-residents)",null,null,"",null,null,null,"-","-"]
[0,null,"Re-insurance assumed (from non-residents)",null,null,"",null,null,null,"-","-"]
[0,null,"Re-insurance assumed (from non-residents)",null,null,"",null,null,null,"-","-"]
[0,null,"Re-insurance assumed (from non-residents)",null,null,"",null,null,null,"-","-"]
[0,null,"Re-insurance assumed (from non-residents)",null,null,"",null,null,null,"-","-"]
[0,null,"Re-insurance assumed (from non-residents)",null,null,"",null,null,null,"-","-"]
[0,null,"Re-insurance assumed (from non-residents)",null,null,"",null,null,null,"-","-"]
[0,null,"Re-insurance assumed (from non-residents)",null,null,"",null,null,null,"-","-"]
[0,null,"Re-insurance assumed (from non-residents)",null,null,"",null,null,null,"-","-"]
[0,null,"Re-insurance assumed (from non-residents)",null,null,"",null,null,null,"-","-"]
[0,null,"Re-insurance assumed (from non-residents)",null,null,"",null,null,null,"-","-"]
[0,null,"Re-insurance assumed (from non-residents)",null,null,"",null,null,null,"-","-"]
[0,null,"Re-insurance assumed (from non-residents)",null,null,"",null,null,null,"-","-"]
[0,null,"Re-insurance assumed (from non-residents)",null,null,"",null,null,null,"-","-"]
[0,null,"Re-insurance assumed (from non-residents)",null,null,"",null,null,null,"-","-"]
[0,null,"Re-insurance assumed (from non-residents)",null,null,"",null,null,null,"-","-"]
[0,null,"Re-insurance assumed (from non-residents)",null,null,"",null,null,null,"-","-"]
[1,10,"Re-insurance ceded (to non-residents)",null,null,"",{"$f":"SUM(G221:G264)","v":0},{"$f":"SUM(H221:H264)","v":0}]
[1,null,"Re-insurance ceded (to non-residents)",null,null,"",null,null,null,{"$f":"IF(COUNTIF(E$221:E$264,E221)>1,\"Duplicate country\",\"-\")","v":"-"},{"$f":"IF(AND(E221<>\"\",AND(G221=\"\",H221=\"\")),\"Input values\",\"-\")","v":"-"}]
[{"$f":"IF(OR(E222<>\"\",G222<>\"\",H222<>\"\"),1,0)","v":0},null,"Re-insurance ceded (to non-residents)",null,null,"",null,null,null,{"$f":"IF(COUNTIF(E$221:E$264,E222)>1,\"Duplicate country\",\"-\")","v":"-"},{"$f":"IF(AND(E222<>\"\",AND(G222=\"\",H222=\"\")),\"Input values\",\"-\")","v":"-"}]
[0,null,"Re-insurance ceded (to non-residents)",null,null,"",null,null,null,"-","-"]
[0,null,"Re-insurance ceded (to non-residents)",null,null,"",null,null,null,"-","-"]
[0,null,"Re-insurance ceded (to non-residents)",null,null,"",null,null,null,"-","-"]
[0,null,"Re-insurance ceded (to non-residents)",null,null,"",null,null,null,"-","-"]
[0,null,"Re-insurance ceded (to non-residents)",null,null,"",null,null,null,"-","-"]
[0,null,"Re-insurance ceded (to non-residents)",null,null,"",null,null,null,"-","-"]
[0,null,"Re-insurance ceded (to non-residents)",null,null,"",null,null,null,"-","-"]
[0,null,"Re-insurance ceded (to non-residents)",null,null,"",null,null,null,"-","-"]
[0,null,"Re-insurance ceded (to non-residents)",null,null,"",null,null,null,"-","-"]
[0,null,"Re-insurance ceded (to non-residents)",null,null,{"$f":"IF(E232=\"\",\"\",VLOOKUP(E232,$C$813:$E$853,2,FALSE))","v":""},null,null,null,"-","-"]
[0,null,"Re-insurance ceded (to non-residents)",null,null,"",null,null,null,"-","-"]
[0,null,"Re-insurance ceded (to non-residents)",null,null,"",null,null,null,"-","-"]
[0,null,"Re-insurance ceded (to non-residents)",null,null,"",null,null,null,"-","-"]
[0,null,"Re-insurance ceded (to non-residents)",null,null,"",null,null,null,"-","-"]
[0,null,"Re-insurance ceded (to non-residents)",null,null,"",null,null,null,"-","-"]
[0,null,"Re-insurance ceded (to non-residents)",null,null,"",null,null,null,"-","-"]
[0,null,"Re-insurance ceded (to non-residents)",null,null,"",null,null,null,"-","-"]
[0,null,"Re-insurance ceded (to non-residents)",null,null,"",null,null,null,"-","-"]
[0,null,"Re-insurance ceded (to non-residents)",null,null,"",null,null,null,"-","-"]
[0,null,"Re-insurance ceded (to non-residents)",null,null,"",null,null,null,"-","-"]
[0,null,"Re-insurance ceded (to non-residents)",null,null,"",null,null,null,"-","-"]
[0,null,"Re-insurance ceded (to non-residents)",null,null,"",null,null,null,"-","-"]
[0,null,"Re-insurance ceded (to non-residents)",null,null,"",null,null,null,"-","-"]
[0,null,"Re-insurance ceded (to non-residents)",null,null,"",null,null,null,"-","-"]
[0,null,"Re-insurance ceded (to non-residents)",null,null,"",null,null,null,"-","-"]
[0,null,"Re-insurance ceded (to non-residents)",null,null,"",null,null,null,"-","-"]
[0,null,"Re-insurance ceded (to non-residents)",null,null,"",null,null,null,"-","-"]
[0,null,"Re-insurance ceded (to non-residents)",null,null,"",null,null,null,"-","-"]
[0,null,"Re-insurance ceded (to non-residents)",null,null,"",null,null,null,"-","-"]
[0,null,"Re-insurance ceded (to non-residents)",null,null,"",null,null,null,"-","-"]
[0,null,"Re-insurance ceded (to non-residents)",null,null,"",null,null,null,"-","-"]
[0,null,"Re-insurance ceded (to non-residents)",null,null,"",null,null,null,"-","-"]
[0,null,"Re-insurance ceded (to non-residents)",null,null,"",null,null,null,"-","-"]
[0,null,"Re-insurance ceded (to non-residents)",null,null,"",null,null,null,"-","-"]
[0,null,"Re-insurance ceded (to non-residents)",null,null,"",null,null,null,"-","-"]
[0,null,"Re-insurance ceded (to non-residents)",null,null,"",null,null,null,"-","-"]
[0,null,"Re-insurance ceded (to non-residents)",null,null,"",null,null,null,"-","-"]
[0,null,"Re-insurance ceded (to non-residents)",null,null,"",null,null,null,"-","-"]
[0,null,"Re-insurance ceded (to non-residents)",null,null,"",null,null,null,"-","-"]
[0,null,"Re-insurance ceded (to non-residents)",null,null,"",null,null,null,"-","-"]
[0,null,"Re-insurance ceded (to non-residents)",null,null,"",null,null,null,"-","-"]
[0,null,"Re-insurance ceded (to non-residents)",null,null,"",null,null,null,"-","-"]
[1,"Other services (for the quarter)",null,null,"Country *",null,"Income","Expenditure"]
[1,11,"   Accounting, auditing, book-keeping and tax consultancy services",null,null,{"$f":"IF(E266=\"\",\"\",VLOOKUP(E266,$C$813:$E$853,2,FALSE))","v":""},{"$f":"SUM(G267:G310)","v":0},{"$f":"SUM(H267:H310)","v":0}]
[1,null,"   Accounting, auditing, book-keeping and tax consultancy services",null,null,"",null,null,null,{"$f":"IF(COUNTIF(E$267:E$310,E267)>1,\"Duplicate country\",\"-\")","v":"-"},{"$f":"IF(AND(E267<>\"\",AND(G267=\"\",H267=\"\")),\"Input values\",\"-\")","v":"-"}]
[{"$f":"IF(OR(E268<>\"\",G268<>\"\",H268<>\"\"),1,0)","v":0},null,"   Accounting, auditing, book-keeping and tax consultancy services",null,null,"",null,null,null,{"$f":"IF(COUNTIF(E$267:E$310,E268)>1,\"Duplicate country\",\"-\")","v":"-"},{"$f":"IF(AND(E268<>\"\",AND(G268=\"\",H268=\"\")),\"Input values\",\"-\")","v":"-"}]
[0,null,"   Accounting, auditing, book-keeping and tax consultancy services",null,null,"",null,null,null,"-","-"]
[0,null,"   Accounting, auditing, book-keeping and tax consultancy services",null,null,"",null,null,null,"-","-"]
[0,null,"   Accounting, auditing, book-keeping and tax consultancy services",null,null,"",null,null,null,"-","-"]
[0,null,"   Accounting, auditing, book-keeping and tax consultancy services",null,null,"",null,null,null,"-","-"]
[0,null,"   Accounting, auditing, book-keeping and tax consultancy services",null,null,"",null,null,null,"-","-"]
[0,null,"   Accounting, auditing, book-keeping and tax consultancy services",null,null,"",null,null,null,"-","-"]
[0,null,"   Accounting, auditing, book-keeping and tax consultancy services",null,null,"",null,null,null,"-","-"]
[0,null,"   Accounting, auditing, book-keeping and tax consultancy services",null,null,"",null,null,null,"-","-"]
[0,null,"   Accounting, auditing, book-keeping and tax consultancy services",null,null,"",null,null,null,"-","-"]
[0,null,"   Accounting, auditing, book-keeping and tax consultancy services",null,null,"",null,null,null,"-","-"]
[0,null,"   Accounting, auditing, book-keeping and tax consultancy services",null,null,"",null,null,null,"-","-"]
[0,null,"   Accounting, auditing, book-keeping and tax consultancy services",null,null,"",null,null,null,"-","-"]
[0,null,"   Accounting, auditing, book-keeping and tax consultancy services",null,null,"",null,null,null,"-","-"]
[0,null,"   Accounting, auditing, book-keeping and tax consultancy services",null,null,"",null,null,null,"-","-"]
[0,null,"   Accounting, auditing, book-keeping and tax consultancy services",null,null,"",null,null,null,"-","-"]
[0,null,"   Accounting, auditing, book-keeping and tax consultancy services",null,null,"",null,null,null,"-","-"]
[0,null,"   Accounting, auditing, book-keeping and tax consultancy services",null,null,"",null,null,null,"-","-"]
[0,null,"   Accounting, auditing, book-keeping and tax consultancy services",null,null,"",null,null,null,"-","-"]
[0,null,"   Accounting, auditing, book-keeping and tax consultancy services",null,null,"",null,null,null,"-","-"]
[0,null,"   Accounting, auditing, book-keeping and tax consultancy services",null,null,"",null,null,null,"-","-"]
[0,null,"   Accounting, auditing, book-keeping and tax consultancy services",null,null,"",null,null,null,"-","-"]
[0,null,"   Accounting, auditing, book-keeping and tax consultancy services",null,null,"",null,null,null,"-","-"]
[0,null,"   Accounting, auditing, book-keeping and tax consultancy services",null,null,"",null,null,null,"-","-"]
[0,null,"   Accounting, auditing, book-keeping and tax consultancy services",null,null,"",null,null,null,"-","-"]
[0,null,"   Accounting, auditing, book-keeping and tax consultancy services",null,null,"",null,null,null,"-","-"]
[0,null,"   Accounting, auditing, book-keeping and tax consultancy services",null,null,"",null,null,null,"-","-"]
[0,null,"   Accounting, auditing, book-keeping and tax consultancy services",null,null,"",null,null,null,"-","-"]
[0,null,"   Accounting, auditing, book-keeping and tax consultancy services",null,null,"",null,null,null,"-","-"]
[0,null,"   Accounting, auditing, book-keeping and tax consultancy services",null,null,"",null,null,null,"-","-"]
[0,null,"   Accounting, auditing, book-keeping and tax consultancy services",null,null,"",null,null,null,"-","-"]
[0,null,"   Accounting, auditing, book-keeping and tax consultancy services",null,null,"",null,null,null,"-","-"]
[0,null,"   Accounting, auditing, book-keeping and tax consultancy services",null,null,"",null,null,null,"-","-"]
[0,null,"   Accounting, auditing, book-keeping and tax consultancy services",null,null,"",null,null,null,"-","-"]
[0,null,"   Accounting, auditing, book-keeping and tax consultancy services",null,null,"",null,null,null,"-","-"]
[0,null,"   Accounting, auditing, book-keeping and tax consultancy services",null,null,"",null,null,null,"-","-"]
[0,null,"   Accounting, auditing, book-keeping and tax consultancy services",null,null,"",null,null,null,"-","-"]
[0,null,"   Accounting, auditing, book-keeping and tax consultancy services",null,null,"",null,null,null,"-","-"]
[0,null,"   Accounting, auditing, book-keeping and tax consultancy services",null,null,"",null,null,null,"-","-"]
[0,null,"   Accounting, auditing, book-keeping and tax consultancy services",null,null,"",null,null,null,"-","-"]
[0,null,"   Accounting, auditing, book-keeping and tax consultancy services",null,null,"",null,null,null,"-","-"]
[0,null,"   Accounting, auditing, book-keeping and tax consultancy services",null,null,"",null,null,null,"-","-"]
[0,null,"   Accounting, auditing, book-keeping and tax consultancy services",null,null,"",null,null,null,"-","-"]
[1,12,"   Advertising, market research and public opinion polling",null,null,"",{"$f":"SUM(G312:G355)","v":0},{"$f":"SUM(H312:H355)","v":0}]
[1,null,"   Advertising, market research and public opinion polling",null,null,"",null,null,null,{"$f":"IF(COUNTIF(E$312:E$355,E312)>1,\"Duplicate country\",\"-\")","v":"-"},{"$f":"IF(AND(E312<>\"\",AND(G312=\"\",H312=\"\")),\"Input values\",\"-\")","v":"-"}]
[{"$f":"IF(OR(E313<>\"\",G313<>\"\",H313<>\"\"),1,0)","v":0},null,"   Advertising, market research and public opinion polling",null,null,"",null,null,null,{"$f":"IF(COUNTIF(E$312:E$355,E313)>1,\"Duplicate country\",\"-\")","v":"-"},{"$f":"IF(AND(E313<>\"\",AND(G313=\"\",H313=\"\")),\"Input values\",\"-\")","v":"-"}]
[0,null,"   Advertising, market research and public opinion polling",null,null,"",null,null,null,"-","-"]
[0,null,"   Advertising, market research and public opinion polling",null,null,"",null,null,null,"-","-"]
[0,null,"   Advertising, market research and public opinion polling",null,null,"",null,null,null,"-","-"]
[0,null,"   Advertising, market research and public opinion polling",null,null,"",null,null,null,"-","-"]
[0,null,"   Advertising, market research and public opinion polling",null,null,"",null,null,null,"-","-"]
[0,null,"   Advertising, market research and public opinion polling",null,null,"",null,null,null,"-","-"]
[0,null,"   Advertising, market research and public opinion polling",null,null,"",null,null,null,"-","-"]
[0,null,"   Advertising, market research and public opinion polling",null,null,"",null,null,null,"-","-"]
[0,null,"   Advertising, market research and public opinion polling",null,null,"",null,null,null,"-","-"]
[0,null,"   Advertising, market research and public opinion polling",null,null,"",null,null,null,"-","-"]
[0,null,"   Advertising, market research and public opinion polling",null,null,"",null,null,null,"-","-"]
[0,null,"   Advertising, market research and public opinion polling",null,null,"",null,null,null,"-","-"]
[0,null,"   Advertising, market research and public opinion polling",null,null,"",null,null,null,"-","-"]
[0,null,"   Advertising, market research and public opinion polling",null,null,"",null,null,null,"-","-"]
[0,null,"   Advertising, market research and public opinion polling",null,null,"",null,null,null,"-","-"]
[0,null,"   Advertising, market research and public opinion polling",null,null,"",null,null,null,"-","-"]
[0,null,"   Advertising, market research and public opinion polling",null,null,{"$f":"IF(E330=\"\",\"\",VLOOKUP(E330,$C$813:$E$853,2,FALSE))","v":""},null,null,null,"-","-"]
[0,null,"   Advertising, market research and public opinion polling",null,null,"",null,null,null,"-","-"]
[0,null,"   Advertising, market research and public opinion polling",null,null,"",null,null,null,"-","-"]
[0,null,"   Advertising, market research and public opinion polling",null,null,"",null,null,null,"-","-"]
[0,null,"   Advertising, market research and public opinion polling",null,null,"",null,null,null,"-","-"]
[0,null,"   Advertising, market research and public opinion polling",null,null,"",null,null,null,"-","-"]
[0,null,"   Advertising, market research and public opinion polling",null,null,"",null,null,null,"-","-"]
[0,null,"   Advertising, market research and public opinion polling",null,null,"",null,null,null,"-","-"]
[0,null,"   Advertising, market research and public opinion polling",null,null,"",null,null,null,"-","-"]
[0,null,"   Advertising, market research and public opinion polling",null,null,"",null,null,null,"-","-"]
[0,null,"   Advertising, market research and public opinion polling",null,null,"",null,null,null,"-","-"]
[0,null,"   Advertising, market research and public opinion polling",null,null,"",null,null,null,"-","-"]
[0,null,"   Advertising, market research and public opinion polling",null,null,"",null,null,null,"-","-"]
[0,null,"   Advertising, market research and public opinion polling",null,null,"",null,null,null,"-","-"]
[0,null,"   Advertising, market research and public opinion polling",null,null,"",null,null,null,"-","-"]
[0,null,"   Advertising, market research and public opinion polling",null,null,"",null,null,null,"-","-"]
[0,null,"   Advertising, market research and public opinion polling",null,null,"",null,null,null,"-","-"]
[0,null,"   Advertising, market research and public opinion polling",null,null,"",null,null,null,"-","-"]
[0,null,"   Advertising, market research and public opinion polling",null,null,"",null,null,null,"-","-"]
[0,null,"   Advertising, market research and public opinion polling",null,null,"",null,null,null,"-","-"]
[0,null,"   Advertising, market research and public opinion polling",null,null,"",null,null,null,"-","-"]
[0,null,"   Advertising, market research and public opinion polling",null,null,"",null,null,null,"-","-"]
[0,null,"   Advertising, market research and public opinion polling",null,null,"",null,null,null,"-","-"]
[0,null,"   Advertising, market research and public opinion polling",null,null,"",null,null,null,"-","-"]
[0,null,"   Advertising, market research and public opinion polling",null,null,"",null,null,null,"-","-"]
[0,null,"   Advertising, market research and public opinion polling",null,null,"",null,null,null,"-","-"]
[1,13,"   Business and management consultancy and public relations services",null,null,"",{"$f":"SUM(G357:G400)","v":0},{"$f":"SUM(H357:H400)","v":0}]
[1,null,"   Business and management consultancy and public relations services",null,null,"",null,null,null,{"$f":"IF(COUNTIF(E$357:E$400,E357)>1,\"Duplicate country\",\"-\")","v":"-"},{"$f":"IF(AND(E357<>\"\",AND(G357=\"\",H357=\"\")),\"Input values\",\"-\")","v":"-"}]
[{"$f":"IF(OR(E358<>\"\",G358<>\"\",H358<>\"\"),1,0)","v":0},null,"   Business and management consultancy and public relations services",null,null,"",null,null,null,{"$f":"IF(COUNTIF(E$357:E$400,E358)>1,\"Duplicate country\",\"-\")","v":"-"},{"$f":"IF(AND(E358<>\"\",AND(G358=\"\",H358=\"\")),\"Input values\",\"-\")","v":"-"}]
[0,null,"   Business and management consultancy and public relations services",null,null,"",null,null,null,"-","-"]
[0,null,"   Business and management consultancy and public relations services",null,null,"",null,null,null,"-","-"]
[0,null,"   Business and management consultancy and public relations services",null,null,"",null,null,null,"-","-"]
[0,null,"   Business and management consultancy and public relations services",null,null,"",null,null,null,"-","-"]
[0,null,"   Business and management consultancy and public relations services",null,null,"",null,null,null,"-","-"]
[0,null,"   Business and management consultancy and public relations services",null,null,"",null,null,null,"-","-"]
[0,null,"   Business and management consultancy and public relations services",null,null,"",null,null,null,"-","-"]
[0,null,"   Business and management consultancy and public relations services",null,null,"",null,null,null,"-","-"]
[0,null,"   Business and management consultancy and public relations services",null,null,"",null,null,null,"-","-"]
[0,null,"   Business and management consultancy and public relations services",null,null,"",null,null,null,"-","-"]
[0,null,"   Business and management consultancy and public relations services",null,null,"",null,null,null,"-","-"]
[0,null,"   Business and management consultancy and public relations services",null,null,"",null,null,null,"-","-"]
[0,null,"   Business and management consultancy and public relations services",null,null,"",null,null,null,"-","-"]
[0,null,"   Business and management consultancy and public relations services",null,null,"",null,null,null,"-","-"]
[0,null,"   Business and management consultancy and public relations services",null,null,"",null,null,null,"-","-"]
[0,null,"   Business and management consultancy and public relations services",null,null,"",null,null,null,"-","-"]
[0,null,"   Business and management consultancy and public relations services",null,null,"",null,null,null,"-","-"]
[0,null,"   Business and management consultancy and public relations services",null,null,"",null,null,null,"-","-"]
[0,null,"   Business and management consultancy and public relations services",null,null,"",null,null,null,"-","-"]
[0,null,"   Business and management consultancy and public relations services",null,null,"",null,null,null,"-","-"]
[0,null,"   Business and management consultancy and public relations services",null,null,"",null,null,null,"-","-"]
[0,null,"   Business and management consultancy and public relations services",null,null,"",null,null,null,"-","-"]
[0,null,"   Business and management consultancy and public relations services",null,null,"",null,null,null,"-","-"]
[0,null,"   Business and management consultancy and public relations services",null,null,"",null,null,null,"-","-"]
[0,null,"   Business and management consultancy and public relations services",null,null,"",null,null,null,"-","-"]
[0,null,"   Business and management consultancy and public relations services",null,null,"",null,null,null,"-","-"]
[0,null,"   Business and management consultancy and public relations services",null,null,"",null,null,null,"-","-"]
[0,null,"   Business and management consultancy and public relations services",null,null,"",null,null,null,"-","-"]
[0,null,"   Business and management consultancy and public relations services",null,null,"",null,null,null,"-","-"]
[0,null,"   Business and management consultancy and public relations services",null,null,"",null,null,null,"-","-"]
[0,null,"   Business and management consultancy and public relations services",null,null,"",null,null,null,"-","-"]
[0,null,"   Business and management consultancy and public relations services",null,null,"",null,null,null,"-","-"]
[0,null,"   Business and management consultancy and public relations services",null,null,"",null,null,null,"-","-"]
[0,null,"   Business and management consultancy and public relations services",null,null,"",null,null,null,"-","-"]
[0,null,"   Business and management consultancy and public relations services",null,null,"",null,null,null,"-","-"]
[0,null,"   Business and management consultancy and public relations services",null,null,{"$f":"IF(E394=\"\",\"\",VLOOKUP(E394,$C$813:$E$853,2,FALSE))","v":""},null,null,null,"-","-"]
[0,null,"   Business and management consultancy and public relations services",null,null,"",null,null,null,"-","-"]
[0,null,"   Business and management consultancy and public relations services",null,null,"",null,null,null,"-","-"]
[0,null,"   Business and management consultancy and public relations services",null,null,"",null,null,null,"-","-"]
[0,null,"   Business and management consultancy and public relations services",null,null,"",null,null,null,"-","-"]
[0,null,"   Business and management consultancy and public relations services",null,null,"",null,null,null,"-","-"]
[0,null,"   Business and management consultancy and public relations services",null,null,"",null,null,null,"-","-"]
[1,14," Telecommunication services",null,null,"",{"$f":"SUM(G402:G445)","v":0},{"$f":"SUM(H402:H445)","v":0}]
[1,null," Telecommunication services",null,null,"",null,null,null,{"$f":"IF(COUNTIF(E$402:E$445,E402)>1,\"Duplicate country\",\"-\")","v":"-"},{"$f":"IF(AND(E402<>\"\",AND(G402=\"\",H402=\"\")),\"Input values\",\"-\")","v":"-"}]
[{"$f":"IF(OR(E403<>\"\",G403<>\"\",H403<>\"\"),1,0)","v":0},null," Telecommunication services",null,null,"",null,null,null,{"$f":"IF(COUNTIF(E$402:E$445,E403)>1,\"Duplicate country\",\"-\")","v":"-"},{"$f":"IF(AND(E403<>\"\",AND(G403=\"\",H403=\"\")),\"Input values\",\"-\")","v":"-"}]
[0,null," Telecommunication services",null,null,"",null,null,null,"-","-"]
[0,null," Telecommunication services",null,null,"",null,null,null,"-","-"]
[0,null," Telecommunication services",null,null,"",null,null,null,"-","-"]
[0,null," Telecommunication services",null,null,"",null,null,null,"-","-"]
[0,null," Telecommunication services",null,null,"",null,null,null,"-","-"]
[0,null," Telecommunication services",null,null,"",null,null,null,"-","-"]
[0,null," Telecommunication services",null,null,"",null,null,null,"-","-"]
[0,null," Telecommunication services",null,null,"",null,null,null,"-","-"]
[0,null," Telecommunication services",null,null,"",null,null,null,"-","-"]
[0,null," Telecommunication services",null,null,"",null,null,null,"-","-"]
[0,null," Telecommunication services",null,null,"",null,null,null,"-","-"]
[0,null," Telecommunication services",null,null,"",null,null,null,"-","-"]
[0,null," Telecommunication services",null,null,"",null,null,null,"-","-"]
[0,null," Telecommunication services",null,null,"",null,null,null,"-","-"]
[0,null," Telecommunication services",null,null,"",null,null,null,"-","-"]
[0,null," Telecommunication services",null,null,"",null,null,null,"-","-"]
[0,null," Telecommunication services",null,null,"",null,null,null,"-","-"]
[0,null," Telecommunication services",null,null,"",null,null,null,"-","-"]
[0,null," Telecommunication services",null,null,"",null,null,null,"-","-"]
[0,null," Telecommunication services",null,null,"",null,null,null,"-","-"]
[0,null," Telecommunication services",null,null,"",null,null,null,"-","-"]
[0,null," Telecommunication services",null,null,"",null,null,null,"-","-"]
[0,null," Telecommunication services",null,null,"",null,null,null,"-","-"]
[0,null," Telecommunication services",null,null,"",null,null,null,"-","-"]
[0,null," Telecommunication services",null,null,"",null,null,null,"-","-"]
[0,null," Telecommunication services",null,null,"",null,null,null,"-","-"]
[0,null," Telecommunication services",null,null,"",null,null,null,"-","-"]
[0,null," Telecommunication services",null,null,"",null,null,null,"-","-"]
[0,null," Telecommunication services",null,null,"",null,null,null,"-","-"]
[0,null," Telecommunication services",null,null,"",null,null,null,"-","-"]
[0,null," Telecommunication services",null,null,"",null,null,null,"-","-"]
[0,null," Telecommunication services",null,null,"",null,null,null,"-","-"]
[0,null," Telecommunication services",null,null,"",null,null,null,"-","-"]
[0,null," Telecommunication services",null,null,"",null,null,null,"-","-"]
[0,null," Telecommunication services",null,null,"",null,null,null,"-","-"]
[0,null," Telecommunication services",null,null,"",null,null,null,"-","-"]
[0,null," Telecommunication services",null,null,"",null,null,null,"-","-"]
[0,null," Telecommunication services",null,null,"",null,null,null,"-","-"]
[0,null," Telecommunication services",null,null,"",null,null,null,"-","-"]
[0,null," Telecommunication services",null,null,"",null,null,null,"-","-"]
[0,null," Telecommunication services",null,null,"",null,null,null,"-","-"]
[0,null," Telecommunication services",null,null,"",null,null,null,"-","-"]
[1,15,"   Financial services",null,null,"",{"$f":"SUM(G447:G490)","v":0},{"$f":"SUM(H447:H490)","v":0}]
[1,null,"   Financial services",null,null,"",null,null,null,{"$f":"IF(COUNTIF(E$447:E$490,E447)>1,\"Duplicate country\",\"-\")","v":"-"},{"$f":"IF(AND(E447<>\"\",AND(G447=\"\",H447=\"\")),\"Input values\",\"-\")","v":"-"}]
[{"$f":"IF(OR(E448<>\"\",G448<>\"\",H448<>\"\"),1,0)","v":0},null,"   Financial services",null,null,"",null,null,null,{"$f":"IF(COUNTIF(E$447:E$490,E448)>1,\"Duplicate country\",\"-\")","v":"-"},{"$f":"IF(AND(E448<>\"\",AND(G448=\"\",H448=\"\")),\"Input values\",\"-\")","v":"-"}]
[0,null,"   Financial services",null,null,"",null,null,null,"-","-"]
[0,null,"   Financial services",null,null,"",null,null,null,"-","-"]
[0,null,"   Financial services",null,null,"",null,null,null,"-","-"]
[0,null,"   Financial services",null,null,"",null,null,null,"-","-"]
[0,null,"   Financial services",null,null,"",null,null,null,"-","-"]
[0,null,"   Financial services",null,null,"",null,null,null,"-","-"]
[0,null,"   Financial services",null,null,"",null,null,null,"-","-"]
[0,null,"   Financial services",null,null,"",null,null,null,"-","-"]
[0,null,"   Financial services",null,null,"",null,null,null,"-","-"]
[0,null,"   Financial services",null,null,{"$f":"IF(E458=\"\",\"\",VLOOKUP(E458,$C$813:$E$853,2,FALSE))","v":""},null,null,null,"-","-"]
[0,null,"   Financial services",null,null,"",null,null,null,"-","-"]
[0,null,"   Financial services",null,null,"",null,null,null,"-","-"]
[0,null,"   Financial services",null,null,"",null,null,null,"-","-"]
[0,null,"   Financial services",null,null,"",null,null,null,"-","-"]
[0,null,"   Financial services",null,null,"",null,null,null,"-","-"]
[0,null,"   Financial services",null,null,"",null,null,null,"-","-"]
[0,null,"   Financial services",null,null,"",null,null,null,"-","-"]
[0,null,"   Financial services",null,null,"",null,null,null,"-","-"]
[0,null,"   Financial services",null,null,"",null,null,null,"-","-"]
[0,null,"   Financial services",null,null,"",null,null,null,"-","-"]
[0,null,"   Financial services",null,null,"",null,null,null,"-","-"]
[0,null,"   Financial services",null,null,"",null,null,null,"-","-"]
[0,null,"   Financial services",null,null,"",null,null,null,"-","-"]
[0,null,"   Financial services",null,null,"",null,null,null,"-","-"]
[0,null,"   Financial services",null,null,"",null,null,null,"-","-"]
[0,null,"   Financial services",null,null,"",null,null,null,"-","-"]
[0,null,"   Financial services",null,null,"",null,null,null,"-","-"]
[0,null,"   Financial services",null,null,"",null,null,null,"-","-"]
[0,null,"   Financial services",null,null,"",null,null,null,"-","-"]
[0,null,"   Financial services",null,null,"",null,null,null,"-","-"]
[0,null,"   Financial services",null,null,"",null,null,null,"-","-"]
[0,null,"   Financial services",null,null,"",null,null,null,"-","-"]
[0,null,"   Financial services",null,null,"",null,null,null,"-","-"]
[0,null,"   Financial services",null,null,"",null,null,null,"-","-"]
[0,null,"   Financial services",null,null,"",null,null,null,"-","-"]
[0,null,"   Financial services",null,null,"",null,null,null,"-","-"]
[0,null,"   Financial services",null,null,"",null,null,null,"-","-"]
[0,null,"   Financial services",null,null,"",null,null,null,"-","-"]
[0,null,"   Financial services",null,null,"",null,null,null,"-","-"]
[0,null,"   Financial services",null,null,"",null,null,null,"-","-"]
[0,null,"   Financial services",null,null,"",null,null,null,"-","-"]
[0,null,"   Financial services",null,null,"",null,null,null,"-","-"]
[1,16,"Charges for the use of intellectual property",null,null,"",{"$f":"SUM(G492:G535)","v":0},{"$f":"SUM(H492:H535)","v":0}]
[1,null,"   Charges for the use of intellectual property",null,null,"",null,null,null,{"$f":"IF(COUNTIF(E$492:E$535,E492)>1,\"Duplicate country\",\"-\")","v":"-"},{"$f":"IF(AND(E492<>\"\",AND(G492=\"\",H492=\"\")),\"Input values\",\"-\")","v":"-"}]
[{"$f":"IF(OR(E493<>\"\",G493<>\"\",H493<>\"\"),1,0)","v":0},null,"   Charges for the use of intellectual property",null,null,"",null,null,null,{"$f":"IF(COUNTIF(E$492:E$535,E493)>1,\"Duplicate country\",\"-\")","v":"-"},{"$f":"IF(AND(E493<>\"\",AND(G493=\"\",H493=\"\")),\"Input values\",\"-\")","v":"-"}]
[0,null,"   Charges for the use of intellectual property",null,null,"",null,null,null,"-","-"]
[0,null,"   Charges for the use of intellectual property",null,null,"",null,null,null,"-","-"]
[0,null,"   Charges for the use of intellectual property",null,null,"",null,null,null,"-","-"]
[0,null,"   Charges for the use of intellectual property",null,null,"",null,null,null,"-","-"]
[0,null,"   Charges for the use of intellectual property",null,null,"",null,null,null,"-","-"]
[0,null,"   Charges for the use of intellectual property",null,null,"",null,null,null,"-","-"]
[0,null,"   Charges for the use of intellectual property",null,null,"",null,null,null,"-","-"]
[0,null,"   Charges for the use of intellectual property",null,null,"",null,null,null,"-","-"]
[0,null,"   Charges for the use of intellectual property",null,null,"",null,null,null,"-","-"]
[0,null,"   Charges for the use of intellectual property",null,null,{"$f":"IF(E503=\"\",\"\",VLOOKUP(E503,$C$813:$E$853,2,FALSE))","v":""},null,null,null,"-","-"]
[0,null,"   Charges for the use of intellectual property",null,null,"",null,null,null,"-","-"]
[0,null,"   Charges for the use of intellectual property",null,null,"",null,null,null,"-","-"]
[0,null,"   Charges for the use of intellectual property",null,null,"",null,null,null,"-","-"]
[0,null,"   Charges for the use of intellectual property",null,null,"",null,null,null,"-","-"]
[0,null,"   Charges for the use of intellectual property",null,null,"",null,null,null,"-","-"]
[0,null,"   Charges for the use of intellectual property",null,null,"",null,null,null,"-","-"]
[0,null,"   Charges for the use of intellectual property",null,null,"",null,null,null,"-","-"]
[0,null,"   Charges for the use of intellectual property",null,null,"",null,null,null,"-","-"]
[0,null,"   Charges for the use of intellectual property",null,null,"",null,null,null,"-","-"]
[0,null,"   Charges for the use of intellectual property",null,null,"",null,null,null,"-","-"]
[0,null,"   Charges for the use of intellectual property",null,null,"",null,null,null,"-","-"]
[0,null,"   Charges for the use of intellectual property",null,null,"",null,null,null,"-","-"]
[0,null,"   Charges for the use of intellectual property",null,null,"",null,null,null,"-","-"]
[0,null,"   Charges for the use of intellectual property",null,null,"",null,null,null,"-","-"]
[0,null,"   Charges for the use of intellectual property",null,null,"",null,null,null,"-","-"]
[0,null,"   Charges for the use of intellectual property",null,null,"",null,null,null,"-","-"]
[0,null,"   Charges for the use of intellectual property",null,null,"",null,null,null,"-","-"]
[0,null,"   Charges for the use of intellectual property",null,null,"",null,null,null,"-","-"]
[0,null,"   Charges for the use of intellectual property",null,null,"",null,null,null,"-","-"]
[0,null,"   Charges for the use of intellectual property",null,null,"",null,null,null,"-","-"]
[0,null,"   Charges for the use of intellectual property",null,null,"",null,null,null,"-","-"]
[0,null,"   Charges for the use of intellectual property",null,null,"",null,null,null,"-","-"]
[0,null,"   Charges for the use of intellectual property",null,null,"",null,null,null,"-","-"]
[0,null,"   Charges for the use of intellectual property",null,null,"",null,null,null,"-","-"]
[0,null,"   Charges for the use of intellectual property",null,null,"",null,null,null,"-","-"]
[0,null,"   Charges for the use of intellectual property",null,null,"",null,null,null,"-","-"]
[0,null,"   Charges for the use of intellectual property",null,null,"",null,null,null,"-","-"]
[0,null,"   Charges for the use of intellectual property",null,null,"",null,null,null,"-","-"]
[0,null,"   Charges for the use of intellectual property",null,null,"",null,null,null,"-","-"]
[0,null,"   Charges for the use of intellectual property",null,null,"",null,null,null,"-","-"]
[0,null,"   Charges for the use of intellectual property",null,null,"",null,null,null,"-","-"]
[0,null,"   Charges for the use of intellectual property",null,null,"",null,null,null,"-","-"]
[1,17,"Computer services",null,null,"",{"$f":"SUM(G537:G580)","v":0},{"$f":"SUM(H537:H580)","v":0}]
[1,null,"Computer services",null,null,"",null,null,null,{"$f":"IF(COUNTIF(E$537:E$580,E537)>1,\"Duplicate country\",\"-\")","v":"-"},{"$f":"IF(AND(E537<>\"\",AND(G537=\"\",H537=\"\")),\"Input values\",\"-\")","v":"-"}]
[{"$f":"IF(OR(E538<>\"\",G538<>\"\",H538<>\"\"),1,0)","v":0},null,"Computer services",null,null,"",null,null,null,{"$f":"IF(COUNTIF(E$537:E$580,E538)>1,\"Duplicate country\",\"-\")","v":"-"},{"$f":"IF(AND(E538<>\"\",AND(G538=\"\",H538=\"\")),\"Input values\",\"-\")","v":"-"}]
[0,null,"Computer services",null,null,"",null,null,null,"-","-"]
[0,null,"Computer services",null,null,"",null,null,null,"-","-"]
[0,null,"Computer services",null,null,"",null,null,null,"-","-"]
[0,null,"Computer services",null,null,"",null,null,null,"-","-"]
[0,null,"Computer services",null,null,"",null,null,null,"-","-"]
[0,null,"Computer services",null,null,"",null,null,null,"-","-"]
[0,null,"Computer services",null,null,"",null,null,null,"-","-"]
[0,null,"Computer services",null,null,"",null,null,null,"-","-"]
[0,null,"Computer services",null,null,"",null,null,null,"-","-"]
[0,null,"Computer services",null,null,{"$f":"IF(E548=\"\",\"\",VLOOKUP(E548,$C$813:$E$853,2,FALSE))","v":""},null,null,null,"-","-"]
[0,null,"Computer services",null,null,"",null,null,null,"-","-"]
[0,null,"Computer services",null,null,"",null,null,null,"-","-"]
[0,null,"Computer services",null,null,"",null,null,null,"-","-"]
[0,null,"Computer services",null,null,"",null,null,null,"-","-"]
[0,null,"Computer services",null,null,"",null,null,null,"-","-"]
[0,null,"Computer services",null,null,"",null,null,null,"-","-"]
[0,null,"Computer services",null,null,"",null,null,null,"-","-"]
[0,null,"Computer services",null,null,"",null,null,null,"-","-"]
[0,null,"Computer services",null,null,"",null,null,null,"-","-"]
[0,null,"Computer services",null,null,"",null,null,null,"-","-"]
[0,null,"Computer services",null,null,"",null,null,null,"-","-"]
[0,null,"Computer services",null,null,"",null,null,null,"-","-"]
[0,null,"Computer services",null,null,"",null,null,null,"-","-"]
[0,null,"Computer services",null,null,"",null,null,null,"-","-"]
[0,null,"Computer services",null,null,"",null,null,null,"-","-"]
[0,null,"Computer services",null,null,"",null,null,null,"-","-"]
[0,null,"Computer services",null,null,"",null,null,null,"-","-"]
[0,null,"Computer services",null,null,"",null,null,null,"-","-"]
[0,null,"Computer services",null,null,"",null,null,null,"-","-"]
[0,null,"Computer services",null,null,"",null,null,null,"-","-"]
[0,null,"Computer services",null,null,"",null,null,null,"-","-"]
[0,null,"Computer services",null,null,"",null,null,null,"-","-"]
[0,null,"Computer services",null,null,"",null,null,null,"-","-"]
[0,null,"Computer services",null,null,"",null,null,null,"-","-"]
[0,null,"Computer services",null,null,"",null,null,null,"-","-"]
[0,null,"Computer services",null,null,"",null,null,null,"-","-"]
[0,null,"Computer services",null,null,"",null,null,null,"-","-"]
[0,null,"Computer services",null,null,"",null,null,null,"-","-"]
[0,null,"Computer services",null,null,"",null,null,null,"-","-"]
[0,null,"Computer services",null,null,"",null,null,null,"-","-"]
[0,null,"Computer services",null,null,"",null,null,null,"-","-"]
[0,null,"Computer services",null,null,"",null,null,null,"-","-"]
[1,18,"Information services",null,null,"",{"$f":"SUM(G582:G625)","v":0},{"$f":"SUM(H582:H625)","v":0}]
[1,null,"Information services",null,null,"",null,null,null,{"$f":"IF(COUNTIF(E$582:E$625,E582)>1,\"Duplicate country\",\"-\")","v":"-"},{"$f":"IF(AND(E582<>\"\",AND(G582=\"\",H582=\"\")),\"Input values\",\"-\")","v":"-"}]
[{"$f":"IF(OR(E583<>\"\",G583<>\"\",H583<>\"\"),1,0)","v":0},null,"Information services",null,null,"",null,null,null,{"$f":"IF(COUNTIF(E$582:E$625,E583)>1,\"Duplicate country\",\"-\")","v":"-"},{"$f":"IF(AND(E583<>\"\",AND(G583=\"\",H583=\"\")),\"Input values\",\"-\")","v":"-"}]
[0,null,"Information services",null,null,"",null,null,null,"-","-"]
[0,null,"Information services",null,null,"",null,null,null,"-","-"]
[0,null,"Information services",null,null,"",null,null,null,"-","-"]
[0,null,"Information services",null,null,"",null,null,null,"-","-"]
[0,null,"Information services",null,null,"",null,null,null,"-","-"]
[0,null,"Information services",null,null,"",null,null,null,"-","-"]
[0,null,"Information services",null,null,"",null,null,null,"-","-"]
[0,null,"Information services",null,null,"",null,null,null,"-","-"]
[0,null,"Information services",null,null,"",null,null,null,"-","-"]
[0,null,"Information services",null,null,{"$f":"IF(E593=\"\",\"\",VLOOKUP(E593,$C$813:$E$853,2,FALSE))","v":""},null,null,null,"-","-"]
[0,null,"Information services",null,null,"",null,null,null,"-","-"]
[0,null,"Information services",null,null,"",null,null,null,"-","-"]
[0,null,"Information services",null,null,"",null,null,null,"-","-"]
[0,null,"Information services",null,null,"",null,null,null,"-","-"]
[0,null,"Information services",null,null,"",null,null,null,"-","-"]
[0,null,"Information services",null,null,"",null,null,null,"-","-"]
[0,null,"Information services",null,null,"",null,null,null,"-","-"]
[0,null,"Information services",null,null,"",null,null,null,"-","-"]
[0,null,"Information services",null,null,"",null,null,null,"-","-"]
[0,null,"Information services",null,null,"",null,null,null,"-","-"]
[0,null,"Information services",null,null,"",null,null,null,"-","-"]
[0,null,"Information services",null,null,"",null,null,null,"-","-"]
[0,null,"Information services",null,null,"",null,null,null,"-","-"]
[0,null,"Information services",null,null,"",null,null,null,"-","-"]
[0,null,"Information services",null,null,"",null,null,null,"-","-"]
[0,null,"Information services",null,null,"",null,null,null,"-","-"]
[0,null,"Information services",null,null,"",null,null,null,"-","-"]
[0,null,"Information services",null,null,"",null,null,null,"-","-"]
[0,null,"Information services",null,null,"",null,null,null,"-","-"]
[0,null,"Information services",null,null,"",null,null,null,"-","-"]
[0,null,"Information services",null,null,"",null,null,null,"-","-"]
[0,null,"Information services",null,null,"",null,null,null,"-","-"]
[0,null,"Information services",null,null,"",null,null,null,"-","-"]
[0,null,"Information services",null,null,"",null,null,null,"-","-"]
[0,null,"Information services",null,null,"",null,null,null,"-","-"]
[0,null,"Information services",null,null,"",null,null,null,"-","-"]
[0,null,"Information services",null,null,"",null,null,null,"-","-"]
[0,null,"Information services",null,null,"",null,null,null,"-","-"]
[0,null,"Information services",null,null,"",null,null,null,"-","-"]
[0,null,"Information services",null,null,"",null,null,null,"-","-"]
[0,null,"Information services",null,null,"",null,null,null,"-","-"]
[0,null,"Information services",null,null,"",null,null,null,"-","-"]
[1,19,"Legal services",null,null,"",{"$f":"SUM(G627:G670)","v":0},{"$f":"SUM(H627:H670)","v":0}]
[1,null,"Legal services",null,null,"",null,null,null,{"$f":"IF(COUNTIF(E$627:E$670,E627)>1,\"Duplicate country\",\"-\")","v":"-"},{"$f":"IF(AND(E627<>\"\",AND(G627=\"\",H627=\"\")),\"Input values\",\"-\")","v":"-"}]
[{"$f":"IF(OR(E628<>\"\",G628<>\"\",H628<>\"\"),1,0)","v":0},null,"Legal services",null,null,"",null,null,null,{"$f":"IF(COUNTIF(E$627:E$670,E628)>1,\"Duplicate country\",\"-\")","v":"-"},{"$f":"IF(AND(E628<>\"\",AND(G628=\"\",H628=\"\")),\"Input values\",\"-\")","v":"-"}]
[0,null,"Legal services",null,null,"",null,null,null,"-","-"]
[0,null,"Legal services",null,null,"",null,null,null,"-","-"]
[0,null,"Legal services",null,null,"",null,null,null,"-","-"]
[0,null,"Legal services",null,null,"",null,null,null,"-","-"]
[0,null,"Legal services",null,null,"",null,null,null,"-","-"]
[0,null,"Legal services",null,null,"",null,null,null,"-","-"]
[0,null,"Legal services",null,null,"",null,null,null,"-","-"]
[0,null,"Legal services",null,null,"",null,null,null,"-","-"]
[0,null,"Legal services",null,null,"",null,null,null,"-","-"]
[0,null,"Legal services",null,null,{"$f":"IF(E638=\"\",\"\",VLOOKUP(E638,$C$813:$E$853,2,FALSE))","v":""},null,null,null,"-","-"]
[0,null,"Legal services",null,null,"",null,null,null,"-","-"]
[0,null,"Legal services",null,null,"",null,null,null,"-","-"]
[0,null,"Legal services",null,null,"",null,null,null,"-","-"]
[0,null,"Legal services",null,null,"",null,null,null,"-","-"]
[0,null,"Legal services",null,null,"",null,null,null,"-","-"]
[0,null,"Legal services",null,null,"",null,null,null,"-","-"]
[0,null,"Legal services",null,null,"",null,null,null,"-","-"]
[0,null,"Legal services",null,null,"",null,null,null,"-","-"]
[0,null,"Legal services",null,null,"",null,null,null,"-","-"]
[0,null,"Legal services",null,null,"",null,null,null,"-","-"]
[0,null,"Legal services",null,null,"",null,null,null,"-","-"]
[0,null,"Legal services",null,null,"",null,null,null,"-","-"]
[0,null,"Legal services",null,null,"",null,null,null,"-","-"]
[0,null,"Legal services",null,null,"",null,null,null,"-","-"]
[0,null,"Legal services",null,null,"",null,null,null,"-","-"]
[0,null,"Legal services",null,null,"",null,null,null,"-","-"]
[0,null,"Legal services",null,null,"",null,null,null,"-","-"]
[0,null,"Legal services",null,null,"",null,null,null,"-","-"]
[0,null,"Legal services",null,null,"",null,null,null,"-","-"]
[0,null,"Legal services",null,null,"",null,null,null,"-","-"]
[0,null,"Legal services",null,null,"",null,null,null,"-","-"]
[0,null,"Legal services",null,null,"",null,null,null,"-","-"]
[0,null,"Legal services",null,null,"",null,null,null,"-","-"]
[0,null,"Legal services",null,null,"",null,null,null,"-","-"]
[0,null,"Legal services",null,null,"",null,null,null,"-","-"]
[0,null,"Legal services",null,null,"",null,null,null,"-","-"]
[0,null,"Legal services",null,null,"",null,null,null,"-","-"]
[0,null,"Legal services",null,null,"",null,null,null,"-","-"]
[0,null,"Legal services",null,null,"",null,null,null,"-","-"]
[0,null,"Legal services",null,null,"",null,null,null,"-","-"]
[0,null,"Legal services",null,null,"",null,null,null,"-","-"]
[0,null,"Legal services",null,null,"",null,null,null,"-","-"]
[1,20,"Research and development services",null,null,"",{"$f":"SUM(G672:G715)","v":0},{"$f":"SUM(H672:H715)","v":0}]
[1,null,"Research and development services",null,null,"",null,null,null,{"$f":"IF(COUNTIF(E$672:E$715,E672)>1,\"Duplicate country\",\"-\")","v":"-"},{"$f":"IF(AND(E672<>\"\",AND(G672=\"\",H672=\"\")),\"Input values\",\"-\")","v":"-"}]
[{"$f":"IF(OR(E673<>\"\",G673<>\"\",H673<>\"\"),1,0)","v":0},null,"Research and development services",null,null,"",null,null,null,{"$f":"IF(COUNTIF(E$672:E$715,E673)>1,\"Duplicate country\",\"-\")","v":"-"},{"$f":"IF(AND(E673<>\"\",AND(G673=\"\",H673=\"\")),\"Input values\",\"-\")","v":"-"}]
[0,null,"Research and development services",null,null,"",null,null,null,"-","-"]
[0,null,"Research and development services",null,null,"",null,null,null,"-","-"]
[0,null,"Research and development services",null,null,"",null,null,null,"-","-"]
[0,null,"Research and development services",null,null,"",null,null,null,"-","-"]
[0,null,"Research and development services",null,null,"",null,null,null,"-","-"]
[0,null,"Research and development services",null,null,"",null,null,null,"-","-"]
[0,null,"Research and development services",null,null,"",null,null,null,"-","-"]
[0,null,"Research and development services",null,null,"",null,null,null,"-","-"]
[0,null,"Research and development services",null,null,"",null,null,null,"-","-"]
[0,null,"Research and development services",null,null,{"$f":"IF(E683=\"\",\"\",VLOOKUP(E683,$C$813:$E$853,2,FALSE))","v":""},null,null,null,"-","-"]
[0,null,"Research and development services",null,null,"",null,null,null,"-","-"]
[0,null,"Research and development services",null,null,"",null,null,null,"-","-"]
[0,null,"Research and development services",null,null,"",null,null,null,"-","-"]
[0,null,"Research and development services",null,null,"",null,null,null,"-","-"]
[0,null,"Research and development services",null,null,"",null,null,null,"-","-"]
[0,null,"Research and development services",null,null,"",null,null,null,"-","-"]
[0,null,"Research and development services",null,null,"",null,null,null,"-","-"]
[0,null,"Research and development services",null,null,"",null,null,null,"-","-"]
[0,null,"Research and development services",null,null,"",null,null,null,"-","-"]
[0,null,"Research and development services",null,null,"",null,null,null,"-","-"]
[0,null,"Research and development services",null,null,"",null,null,null,"-","-"]
[0,null,"Research and development services",null,null,"",null,null,null,"-","-"]
[0,null,"Research and development services",null,null,"",null,null,null,"-","-"]
[0,null,"Research and development services",null,null,"",null,null,null,"-","-"]
[0,null,"Research and development services",null,null,"",null,null,null,"-","-"]
[0,null,"Research and development services",null,null,"",null,null,null,"-","-"]
[0,null,"Research and development services",null,null,"",null,null,null,"-","-"]
[0,null,"Research and development services",null,null,"",null,null,null,"-","-"]
[0,null,"Research and development services",null,null,"",null,null,null,"-","-"]
[0,null,"Research and development services",null,null,"",null,null,null,"-","-"]
[0,null,"Research and development services",null,null,"",null,null,null,"-","-"]
[0,null,"Research and development services",null,null,"",null,null,null,"-","-"]
[0,null,"Research and development services",null,null,"",null,null,null,"-","-"]
[0,null,"Research and development services",null,null,"",null,null,null,"-","-"]
[0,null,"Research and development services",null,null,"",null,null,null,"-","-"]
[0,null,"Research and development services",null,null,"",null,null,null,"-","-"]
[0,null,"Research and development services",null,null,"",null,null,null,"-","-"]
[0,null,"Research and development services",null,null,"",null,null,null,"-","-"]
[0,null,"Research and development services",null,null,"",null,null,null,"-","-"]
[0,null,"Research and development services",null,null,"",null,null,null,"-","-"]
[0,null,"Research and development services",null,null,"",null,null,null,"-","-"]
[0,null,"Research and development services",null,null,"",null,null,null,"-","-"]
[1,21,"Commissions",null,null,"",{"$f":"SUM(G717:G760)","v":0},{"$f":"SUM(H717:H760)","v":0}]
[1,null,"Commissions",null,null,"",null,null,null,{"$f":"IF(COUNTIF(E$717:E$760,E717)>1,\"Duplicate country\",\"-\")","v":"-"},{"$f":"IF(AND(E717<>\"\",AND(G717=\"\",H717=\"\")),\"Input values\",\"-\")","v":"-"}]
[{"$f":"IF(OR(E718<>\"\",G718<>\"\",H718<>\"\"),1,0)","v":0},null,"Commissions",null,null,"",null,null,null,{"$f":"IF(COUNTIF(E$717:E$760,E718)>1,\"Duplicate country\",\"-\")","v":"-"},{"$f":"IF(AND(E718<>\"\",AND(G718=\"\",H718=\"\")),\"Input values\",\"-\")","v":"-"}]
[0,null,"Commissions",null,null,"",null,null,null,"-","-"]
[0,null,"Commissions",null,null,"",null,null,null,"-","-"]
[0,null,"Commissions",null,null,"",null,null,null,"-","-"]
[0,null,"Commissions",null,null,"",null,null,null,"-","-"]
[0,null,"Commissions",null,null,"",null,null,null,"-","-"]
[0,null,"Commissions",null,null,"",null,null,null,"-","-"]
[0,null,"Commissions",null,null,"",null,null,null,"-","-"]
[0,null,"Commissions",null,null,"",null,null,null,"-","-"]
[0,null,"Commissions",null,null,"",null,null,null,"-","-"]
[0,null,"Commissions",null,null,{"$f":"IF(E728=\"\",\"\",VLOOKUP(E728,$C$813:$E$853,2,FALSE))","v":""},null,null,null,"-","-"]
[0,null,"Commissions",null,null,"",null,null,null,"-","-"]
[0,null,"Commissions",null,null,"",null,null,null,"-","-"]
[0,null,"Commissions",null,null,"",null,null,null,"-","-"]
[0,null,"Commissions",null,null,"",null,null,null,"-","-"]
[0,null,"Commissions",null,null,"",null,null,null,"-","-"]
[0,null,"Commissions",null,null,"",null,null,null,"-","-"]
[0,null,"Commissions",null,null,"",null,null,null,"-","-"]
[0,null,"Commissions",null,null,"",null,null,null,"-","-"]
[0,null,"Commissions",null,null,"",null,null,null,"-","-"]
[0,null,"Commissions",null,null,"",null,null,null,"-","-"]
[0,null,"Commissions",null,null,"",null,null,null,"-","-"]
[0,null,"Commissions",null,null,"",null,null,null,"-","-"]
[0,null,"Commissions",null,null,"",null,null,null,"-","-"]
[0,null,"Commissions",null,null,"",null,null,null,"-","-"]
[0,null,"Commissions",null,null,"",null,null,null,"-","-"]
[0,null,"Commissions",null,null,"",null,null,null,"-","-"]
[0,null,"Commissions",null,null,"",null,null,null,"-","-"]
[0,null,"Commissions",null,null,"",null,null,null,"-","-"]
[0,null,"Commissions",null,null,"",null,null,null,"-","-"]
[0,null,"Commissions",null,null,"",null,null,null,"-","-"]
[0,null,"Commissions",null,null,"",null,null,null,"-","-"]
[0,null,"Commissions",null,null,"",null,null,null,"-","-"]
[0,null,"Commissions",null,null,"",null,null,null,"-","-"]
[0,null,"Commissions",null,null,"",null,null,null,"-","-"]
[0,null,"Commissions",null,null,"",null,null,null,"-","-"]
[0,null,"Commissions",null,null,"",null,null,null,"-","-"]
[0,null,"Commissions",null,null,"",null,null,null,"-","-"]
[0,null,"Commissions",null,null,"",null,null,null,"-","-"]
[0,null,"Commissions",null,null,"",null,null,null,"-","-"]
[0,null,"Commissions",null,null,"",null,null,null,"-","-"]
[0,null,"Commissions",null,null,"",null,null,null,"-","-"]
[0,null,"Commissions",null,null,"",null,null,null,"-","-"]
[1,22,"Other services not included elsewhere",null,null,"",{"$f":"SUM(G762:G805)","v":0},{"$f":"SUM(H762:H805)","v":0}]
[1,null,"Other services not included elsewhere",null,null,"",null,null,null,{"$f":"IF(COUNTIF(E$762:E$805,E762)>1,\"Duplicate country\",\"-\")","v":"-"},{"$f":"IF(AND(E762<>\"\",AND(G762=\"\",H762=\"\")),\"Input values\",\"-\")","v":"-"}]
[{"$f":"IF(OR(E763<>\"\",G763<>\"\",H763<>\"\"),1,0)","v":0},null,"Other services not included elsewhere",null,null,"",null,null,null,{"$f":"IF(COUNTIF(E$762:E$805,E763)>1,\"Duplicate country\",\"-\")","v":"-"},{"$f":"IF(AND(E763<>\"\",AND(G763=\"\",H763=\"\")),\"Input values\",\"-\")","v":"-"}]
[0,null,"Other services not included elsewhere",null,null,"",null,null,null,"-","-"]
[0,null,"Other services not included elsewhere",null,null,"",null,null,null,"-","-"]
[0,null,"Other services not included elsewhere",null,null,"",null,null,null,"-","-"]
[0,null,"Other services not included elsewhere",null,null,"",null,null,null,"-","-"]
[0,null,"Other services not included elsewhere",null,null,"",null,null,null,"-","-"]
[0,null,"Other services not included elsewhere",null,null,"",null,null,null,"-","-"]
[0,null,"Other services not included elsewhere",null,null,"",null,null,null,"-","-"]
[0,null,"Other services not included elsewhere",null,null,"",null,null,null,"-","-"]
[0,null,"Other services not included elsewhere",null,null,"",null,null,null,"-","-"]
[0,null,"Other services not included elsewhere",null,null,{"$f":"IF(E773=\"\",\"\",VLOOKUP(E773,$C$813:$E$853,2,FALSE))","v":""},null,null,null,"-","-"]
[0,null,"Other services not included elsewhere",null,null,"",null,null,null,"-","-"]
[0,null,"Other services not included elsewhere",null,null,"",null,null,null,"-","-"]
[0,null,"Other services not included elsewhere",null,null,"",null,null,null,"-","-"]
[0,null,"Other services not included elsewhere",null,null,"",null,null,null,"-","-"]
[0,null,"Other services not included elsewhere",null,null,"",null,null,null,"-","-"]
[0,null,"Other services not included elsewhere",null,null,"",null,null,null,"-","-"]
[0,null,"Other services not included elsewhere",null,null,"",null,null,null,"-","-"]
[0,null,"Other services not included elsewhere",null,null,"",null,null,null,"-","-"]
[0,null,"Other services not included elsewhere",null,null,"",null,null,null,"-","-"]
[0,null,"Other services not included elsewhere",null,null,"",null,null,null,"-","-"]
[0,null,"Other services not included elsewhere",null,null,"",null,null,null,"-","-"]
[0,null,"Other services not included elsewhere",null,null,"",null,null,null,"-","-"]
[0,null,"Other services not included elsewhere",null,null,"",null,null,null,"-","-"]
[0,null,"Other services not included elsewhere",null,null,"",null,null,null,"-","-"]
[0,null,"Other services not included elsewhere",null,null,"",null,null,null,"-","-"]
[0,null,"Other services not included elsewhere",null,null,"",null,null,null,"-","-"]
[0,null,"Other services not included elsewhere",null,null,"",null,null,null,"-","-"]
[0,null,"Other services not included elsewhere",null,null,"",null,null,null,"-","-"]
[0,null,"Other services not included elsewhere",null,null,"",null,null,null,"-","-"]
[0,null,"Other services not included elsewhere",null,null,"",null,null,null,"-","-"]
[0,null,"Other services not included elsewhere",null,null,"",null,null,null,"-","-"]
[0,null,"Other services not included elsewhere",null,null,"",null,null,null,"-","-"]
[0,null,"Other services not included elsewhere",null,null,"",null,null,null,"-","-"]
[0,null,"Other services not included elsewhere",null,null,"",null,null,null,"-","-"]
[0,null,"Other services not included elsewhere",null,null,"",null,null,null,"-","-"]
[0,null,"Other services not included elsewhere",null,null,"",null,null,null,"-","-"]
[0,null,"Other services not included elsewhere",null,null,"",null,null,null,"-","-"]
[0,null,"Other services not included elsewhere",null,null,"",null,null,null,"-","-"]
[0,null,"Other services not included elsewhere",null,null,"",null,null,null,"-","-"]
[0,null,"Other services not included elsewhere",null,null,"",null,null,null,"-","-"]
[0,null,"Other services not included elsewhere",null,null,"",null,null,null,"-","-"]
[0,null,"Other services not included elsewhere",null,null,"",null,null,null,"-","-"]
[1]
[1,"* Contains a dropdown menu"]
[2]
[2]
[2]
[2]
[2]
[2,null,"Austria ","AT"]
[2,null,"Belgium ","BE"]
[2,null,"Brazil ","BR"]
[2,null,"Bulgaria ","BG"]
[2,null,"Canada ","CA"]
[2,null,"China ","CN"]
[2,null,"Croatia ","HR"]
[2,null,"Cyprus ","CY"]
[2,null,"Czech Republic ","CZ"]
[2,null,"Denmark ","DK"]
[2,null,"Estonia ","EE"]
[2,null,"Finland ","FI"]
[2,null,"France ","FR"]
[2,null,"Germany ","DE"]
[2,null,"Greece ","GR"]
[2,null,"Hong Kong ","HK"]
[2,null,"Hungary ","HU"]
[2,null,"India ","IN"]
[2,null,"Ireland ","IE"]
[2,null,"Italy ","IT"]
[2,null,"Japan ","JP"]
[2,null,"Latvia ","LV"]
[2,null,"Lithuania ","LT"]
[2,null,"Luxembourg ","LU"]
[2,null,"Netherlands ","NL"]
[2,null,"Poland ","PL"]
[2,null,"Portugal ","PT"]
[2,null,"Romania ","RO"]
[2,null,"Russian Federation ","RU"]
[2,null,"Slovak Republic ","SK"]
[2,null,"Slovenia ","SI"]
[2,null,"Spain ","ES"]
[2,null,"Sweden ","SE"]
[2,null,"Switzerland ","CH"]
[2,null,"United Kingdom ","GB"]
[2,null,"United States ","US"]
[2,null,"European Investment Bank ","4C"]
[2,null,"International Monetary Fund ","1C"]
[2,null,"International organisations (excluding Union Institutions)","9A"]
[2,null,"Union Institutions (excluding ECB)","4AA",null,"BPM5 was"]
[2,null,"Other countries not specified elsewhere","0_x28","Z8","Z8"]
[2]
[2]
[2]
[2]
[2]
[2]
[2]
[2]
[2]
[2]
[2]
[2]
[2]
[2]
[2]
[2]
[2]
[2]
[2]
[2]
[2]
[2]
[2]
[2]
[2]
[2]
[2]
[2]
[2]
[2]
[2]
[2]
[2]
[2]
[2]
[2]

{"sheet":"List","index":8,"n_rows":252,"n_cols":15,"rows_kept":252,"cut":false,"hidden":true,"merged":[]}
[]
[]
[null,"AFGHANISTAN",null,null,"FOS",null,"Medical expense insurance - Direct Business",null,null,null,null,null,null,null,"Health insurance"]
[null,"ÅLAND ISLANDS",null,null,"FOE",null,"Medical expense insurance - Proportional reinsurance accepted ",null,null,null,null,null,null,null,"Insurance with profit participation"]
[null,"ALBANIA",null,null,"Non-EEA",null,"Income protection insurance - Direct Business",null,null,null,null,null,null,null,"Index-linked and unit-linked insurance"]
[null,"ALGERIA",null,null,"Not applicable",null,"Income protection insurance - Proportional reinsurance accepted ",null,null,null,null,null,null,null,"Other life insurance"]
[null,"AMERICAN SAMOA",null,null,null,null,"Workers' compensation insurance - Direct Business",null,null,null,null,null,null,null,"Annuities stemming from non-life insurance contracts and relating to health insurance obligations"]
[null,"ANDORRA",null,null,null,null,"Workers' compensation insurance - Proportional reinsurance accepted ",null,null,null,null,null,null,null,"Annuities stemming from non-life insurance contracts and relating to insurance obligations other than health insurance obligations"]
[null,"ANGOLA",null,null,null,null,"Motor vehicle liability insurance - Direct Business",null,null,null,null,null,null,null,"Health reinsurance"]
[null,"ANGUILLA",null,null,null,null,"Motor vehicle liability insurance - Proportional reinsurance accepted ",null,null,null,null,null,null,null,"Life reinsurance"]
[null,"ANTARCTICA",null,null,null,null,"Other motor insurance - Direct Business"]
[null,"ANTIGUA AND BARBUDA",null,null,null,null,"Other motor insurance - Proportional reinsurance accepted "]
[null,"ARGENTINA",null,null,null,null,"Marine, aviation and transport insurance - Direct Business"]
[null,"ARMENIA",null,null,null,null,"Marine, aviation and transport insurance - Proportional reinsurance accepted "]
[null,"ARUBA",null,null,null,null,"Fire and other damage to property insurance - Direct Business"]
[null,"AUSTRALIA",null,null,null,null,"Fire and other damage to property insurance - Proportional reinsurance accepted "]
[null,"AUSTRIA",null,null,null,null,"General liability insurance - Direct Business"]
[null,"AZERBAIJAN",null,null,null,null,"General liability insurance - Proportional reinsurance accepted "]
[null,"BAHAMAS",null,null,null,null,"Credit and suretyship insurance - Direct Business"]
[null,"BAHRAIN",null,null,null,null,"Credit and suretyship insurance - Proportional reinsurance accepted "]
[null,"BANGLADESH",null,null,null,null,"Legal expenses insurance - Direct Business"]
[null,"BARBADOS",null,null,null,null,"Legal expenses insurance - Proportional reinsurance accepted "]
[null,"BELARUS",null,null,null,null,"Assistance - Direct Business"]
[null,"BELGIUM",null,null,null,null,"Assistance - Proportional reinsurance accepted "]
[null,"BELIZE",null,null,null,null,"Miscellaneous financial loss - Direct Business"]
[null,"BENIN",null,null,null,null,"Miscellaneous financial loss - Proportional reinsurance accepted "]
[null,"BERMUDA",null,null,null,null,"Health - Non-proportional reinsurance accepted "]
[null,"BHUTAN",null,null,null,null,"Casualty - Non-proportional reinsurance accepted "]
[null,"BOLIVIA, PLURINATIONAL STATE OF",null,null,null,null,"Marine, aviation, transport - Non-proportional reinsurance accepted "]
[null,"BONAIRE, SINT EUSTATIUS AND SABA",null,null,null,null,"Property - Non-proportional reinsurance accepted "]
[null,"BOSNIA AND HERZEGOVINA"]
[null,"BOTSWANA"]
[null,"BOUVET ISLAND"]
[null,"BRAZIL"]
[null,"BRITISH INDIAN OCEAN TERRITORY"]
[null,"BRUNEI DARUSSALAM"]
[null,"BULGARIA"]
[null,"BURKINA FASO"]
[null,"BURUNDI"]
[null,"CAMBODIA"]
[null,"CAMEROON"]
[null,"CANADA"]
[null,"CAPE VERDE"]
[null,"CAYMAN ISLANDS"]
[null,"CENTRAL AFRICAN REPUBLIC"]
[null,"CHAD"]
[null,"CHILE"]
[null,"CHINA"]
[null,"CHRISTMAS ISLAND"]
[null,"COCOS (KEELING) ISLANDS"]
[null,"COLOMBIA"]
[null,"COMOROS"]
[null,"CONGO"]
[null,"CONGO, THE DEMOCRATIC REPUBLIC OF THE"]
[null,"COOK ISLANDS"]
[null,"COSTA RICA"]
[null,"CÔTE D'IVOIRE"]
[null,"CROATIA"]
[null,"CUBA"]
[null,"CURAÇAO"]
[null,"CYPRUS"]
[null,"CZECHIA"]
[null,"DENMARK"]
[null,"DJIBOUTI"]
[null,"DOMINICA"]
[null,"DOMINICAN REPUBLIC"]
[null,"ECUADOR"]
[null,"EGYPT"]
[null,"EL SALVADOR"]
[null,"EQUATORIAL GUINEA"]
[null,"ERITREA"]
[null,"ESTONIA"]
[null,"ESWATINI"]
[null,"ETHIOPIA"]
[null,"FALKLAND ISLANDS (MALVINAS)"]
[null,"FAROE ISLANDS"]
[null,"FIJI"]
[null,"FINLAND"]
[null,"FRANCE"]
[null,"FRENCH GUIANA"]
[null,"FRENCH POLYNESIA"]
[null,"FRENCH SOUTHERN TERRITORIES"]
[null,"GABON"]
[null,"GAMBIA"]
[null,"GEORGIA"]
[null,"GERMANY"]
[null,"GHANA"]
[null,"GREECE"]
[null,"GREENLAND"]
[null,"GRENADA"]
[null,"GUADELOUPE"]
[null,"GUAM"]
[null,"GUATEMALA"]
[null,"GUERNSEY"]
[null,"GUINEA"]
[null,"GUINEA-BISSAU"]
[null,"GUYANA"]
[null,"HAITI"]
[null,"HEARD ISLAND AND MCDONALD ISLANDS"]
[null,"HOLY SEE (VATICAN CITY STATE)"]
[null,"HONDURAS"]
[null,"HONG KONG"]
[null,"HUNGARY"]
[null,"ICELAND"]
[null,"INDIA"]
[null,"INDONESIA"]
[null,"IRAN, ISLAMIC REPUBLIC OF"]
[null,"IRAQ"]
[null,"IRELAND"]
[null,"ISLE OF MAN"]
[null,"ISRAEL"]
[null,"ITALY"]
[null,"JAMAICA"]
[null,"JAPAN"]
[null,"JERSEY"]
[null,"JORDAN"]
[null,"KAZAKHSTAN"]
[null,"KENYA"]
[null,"KIRIBATI"]
[null,"KOREA, DEMOCRATIC PEOPLE'S REPUBLIC OF"]
[null,"KOREA, REPUBLIC OF"]
[null,"KOSOVO"]
[null,"KUWAIT"]
[null,"KYRGYZSTAN"]
[null,"LAO PEOPLE'S DEMOCRATIC REPUBLIC"]
[null,"LATVIA"]
[null,"LEBANON"]
[null,"LESOTHO"]
[null,"LIBERIA"]
[null,"LIBYA"]
[null,"LIECHTENSTEIN"]
[null,"LITHUANIA"]
[null,"LUXEMBOURG"]
[null,"MACAO"]
[null,"MADAGASCAR"]
[null,"MALAWI"]
[null,"MALAYSIA"]
[null,"MALDIVES"]
[null,"MALI"]
[null,"MALTA"]
[null,"MARSHALL ISLANDS"]
[null,"MARTINIQUE"]
[null,"MAURITANIA"]
[null,"MAURITIUS"]
[null,"MAYOTTE"]
[null,"MEXICO"]
[null,"MICRONESIA, FEDERATED STATES OF"]
[null,"MOLDOVA, REPUBLIC OF"]
[null,"MONACO"]
[null,"MONGOLIA"]
[null,"MONTENEGRO"]
[null,"MONTSERRAT"]
[null,"MOROCCO"]
[null,"MOZAMBIQUE"]
[null,"MYANMAR"]
[null,"NAMIBIA"]
[null,"NAURU"]
[null,"NEPAL"]
[null,"NETHERLANDS"]
[null,"NEW CALEDONIA"]
[null,"NEW ZEALAND"]
[null,"NICARAGUA"]
[null,"NIGER"]
[null,"NIGERIA"]
[null,"NIUE"]
[null,"NORFOLK ISLAND"]
[null,"NORTH MACEDONIA"]
[null,"NORTHERN MARIANA ISLANDS"]
[null,"NORWAY"]
[null,"OMAN"]
[null,"PAKISTAN"]
[null,"PALAU"]
[null,"PALESTINE, STATE OF"]
[null,"PANAMA"]
[null,"PAPUA NEW GUINEA"]
[null,"PARAGUAY"]
[null,"PERU"]
[null,"PHILIPPINES"]
[null,"PITCAIRN"]
[null,"POLAND"]
[null,"PORTUGAL"]
[null,"PUERTO RICO"]
[null,"QATAR"]
[null,"RÉUNION"]
[null,"ROMANIA"]
[null,"RUSSIAN FEDERATION"]
[null,"RWANDA"]
[null,"SAINT BARTHÉLEMY"]
[null,"SAINT HELENA, ASCENSION AND TRISTAN DA CUNHA"]
[null,"SAINT KITTS AND NEVIS"]
[null,"SAINT LUCIA"]
[null,"SAINT MARTIN (FRENCH PART)"]
[null,"SAINT PIERRE AND MIQUELON"]
[null,"SAINT VINCENT AND THE GRENADINES"]
[null,"SAMOA"]
[null,"SAN MARINO"]
[null,"SAO TOME AND PRINCIPE"]
[null,"SAUDI ARABIA"]
[null,"SENEGAL"]
[null,"SERBIA"]
[null,"SEYCHELLES"]
[null,"SIERRA LEONE"]
[null,"SINGAPORE"]
[null,"SINT MAARTEN (DUTCH PART)"]
[null,"SLOVAKIA"]
[null,"SLOVENIA"]
[null,"SOLOMON ISLANDS"]
[null,"SOMALIA"]
[null,"SOUTH AFRICA"]
[null,"SOUTH GEORGIA AND THE SOUTH SANDWICH ISLANDS"]
[null,"SOUTH SUDAN"]
[null,"SPAIN"]
[null,"SRI LANKA"]
[null,"SUDAN"]
[null,"SURINAME"]
[null,"SVALBARD AND JAN MAYEN"]
[null,"SWEDEN"]
[null,"SWITZERLAND"]
[null,"SYRIAN ARAB REPUBLIC"]
[null,"TAIWAN, PROVINCE OF CHINA"]
[null,"TAJIKISTAN"]
[null,"TANZANIA, UNITED REPUBLIC OF"]
[null,"THAILAND"]
[null,"TIMOR-LESTE"]
[null,"TOGO"]
[null,"TOKELAU"]
[null,"TONGA"]
[null,"TRINIDAD AND TOBAGO"]
[null,"TUNISIA"]
[null,"TURKEY"]
[null,"TURKMENISTAN"]
[null,"TURKS AND CAICOS ISLANDS"]
[null,"TUVALU"]
[null,"UGANDA"]
[null,"UKRAINE"]
[null,"UNITED ARAB EMIRATES"]
[null,"UNITED KINGDOM"]
[null,"UNITED KINGDOM (GIBRALTAR)"]
[null,"UNITED STATES"]
[null,"UNITED STATES MINOR OUTLYING ISLANDS"]
[null,"URUGUAY"]
[null,"UZBEKISTAN"]
[null,"VANUATU"]
[null,"VENEZUELA, BOLIVARIAN REPUBLIC OF"]
[null,"VIET NAM"]
[null,"VIRGIN ISLANDS, BRITISH"]
[null,"VIRGIN ISLANDS, U.S."]
[null,"WALLIS AND FUTUNA"]
[null,"WESTERN SAHARA"]
[null,"YEMEN"]
[null,"ZAMBIA"]
[null,"ZIMBABWE"]